{"text_format":"1","workbook":"xlsx","n_sheets":3,"sheets":["Tabelle1","Tabelle2","Tabelle3"],"not_rendered":{"charts":0,"images":0,"macros":1,"external_links":0,"defined_names":0,"comments":0,"pivot_tables":0},"unopened":[],"bounds":{"document_bytes":16777216,"sheet_cells":100000,"rows_first":2000,"rows_last":500,"rows_between":2000,"halvings":0,"cell_chars":16384,"cell_head_chars":4096},"cells_cut":0,"cells_raw":0,"read":"whole","date_system":"1900"}

{"sheet":"Tabelle1","index":0,"n_rows":1306,"n_cols":39,"rows_kept":1306,"cut":false,"hidden":false,"merged":[[9,1,9,6],[9,8,9,13],[9,15,9,20],[9,22,9,27],[9,31,9,35],[8,1,8,6],[8,8,8,13],[8,15,8,20],[8,22,8,27],[8,31,8,35],[1,0,1,10],[7,31,7,35],[5,1,5,6],[7,1,7,6],[6,1,6,6],[5,8,5,13],[6,8,6,13],[7,8,7,13],[5,31,5,35],[6,31,6,35],[5,15,5,20],[6,15,6,20],[7,15,7,20],[5,22,5,27],[6,22,6,27],[7,22,7,27]]}
["Variationen und Kombinationen",null,null,null,null,null,null,null,null,null,null,null,null,null,null,null,null,null,null,null,null,null,null,null,null,null,null,null,null,null,null,null,null,null,null,null,null,null,"2024-09-02"]
["Funktion PermComb()"]
[]
["Grundmenge (n = 6):","A","B","C","D","E","F"]
[]
[null,"Variationen\n(k-Permutationen)",null,null,null,null,null,null,"Variationen\n(k-Permutationen)",null,null,null,null,null,null,"Kombinationen",null,null,null,null,null,null,"Kombinationen",null,null,null,null,null,null,null,null,"Permutationen\nSpezialfall  k = n = 5"]
[null,"4 aus 6",null,null,null,null,null,null,"4 aus 6",null,null,null,null,null,null,"4 aus 6",null,null,null,null,null,null,"4 aus 6",null,null,null,null,null,null,null,null,"Alle möglichen Anordnungen von 5 Silben"]
[null,"(mit Reihenfolge)\nohne Wiederholungen",null,null,null,null,null,null,"(mit Reihenfolge)\nmit Wiederholungen",null,null,null,null,null,null,"(ohne Reihenfolge)\nohne Wiederholungen",null,null,null,null,null,null,"(ohne Reihenfolge)\nmit Wiederholungen",null,null,null,null,null,null,null,null,"Variationen (d.h. mit Reihenfolge)\nohne Wiederholungen"]
["Anzahl:",360,null,null,null,null,null,null,1296,null,null,null,null,null,null,15,null,null,null,null,null,null,126,null,null,null,null,null,null,"Silben:",null,120,null,null,null,null,null,"Lesemarathon:"]
[null,"=permcomb(B4:G4;4;WAHR;FALSCH)",null,null,null,null,null,null,"=permcomb(B4:G4;4;WAHR;WAHR)",null,null,null,null,null,null,"=permcomb(B4:G4;4;FALSCH;FALSCH)",null,null,null,null,null,null,"=permcomb(B4:G4;4;FALSCH;WAHR)",null,null,null,null,null,null,null,null,"=permcomb(AD11:AD15)"]
[null,{"$f":"permcomb(B4:G4,4)","v":"A"},"B","C","D",null,null,null,{"$f":"permcomb(B4:G4,4,TRUE,TRUE)","v":"A"},"A","A","A",null,null,null,{"$f":"permcomb(B4:G4,4,FALSE,FALSE)","v":"A"},"B","C","D",null,null,null,{"$f":"permcomb(B4:G4,4,FALSE,TRUE)","v":"A"},"A","A","A",null,null,null,"ma",null,{"$f":"permcomb(AD11:AD15)","v":"ma"},"ra","thon","le","sen",null,{"$f":"AF11&AG11&AH11&AI11&AJ11","v":"marathonlesen"}]
[null,"A","B","C","E",null,null,null,"A","A","A","B",null,null,null,"A","B","C","E",null,null,null,"A","A","A","B",null,null,null,"ra",null,"ma","ra","thon","sen","le",null,{"$f":"AF12&AG12&AH12&AI12&AJ12","v":"marathonsenle"}]
[null,"A","B","C","F",null,null,null,"A","A","A","C",null,null,null,"A","B","C","F",null,null,null,"A","A","A","C",null,null,null,"thon",null,"ma","ra","le","thon","sen",null,"maralethonsen"]
[null,"A","B","D","C",null,null,null,"A","A","A","D",null,null,null,"A","B","D","E",null,null,null,"A","A","A","D",null,null,null,"le",null,"ma","ra","le","sen","thon",null,"maralesenthon"]
[null,"A","B","D","E",null,null,null,"A","A","A","E",null,null,null,"A","B","D","F",null,null,null,"A","A","A","E",null,null,null,"sen",null,"ma","ra","sen","thon","le",null,"marasenthonle"]
[null,"A","B","D","F",null,null,null,"A","A","A","F",null,null,null,"A","B","E","F",null,null,null,"A","A","A","F",null,null,null,null,null,"ma","ra","sen","le","thon",null,"marasenlethon"]
[null,"A","B","E","C",null,null,null,"A","A","B","A",null,null,null,"A","C","D","E",null,null,null,"A","A","B","B",null,null,null,null,null,"ma","thon","ra","le","sen",null,"mathonralesen"]
[null,"A","B","E","D",null,null,null,"A","A","B","B",null,null,null,"A","C","D","F",null,null,null,"A","A","B","C",null,null,null,null,null,"ma","thon","ra","sen","le",null,"mathonrasenle"]
[null,"A","B","E","F",null,null,null,"A","A","B","C",null,null,null,"A","C","E","F",null,null,null,"A","A","B","D",null,null,null,null,null,"ma","thon","le","ra","sen",null,"mathonlerasen"]
[null,"A","B","F","C",null,null,null,"A","A","B","D",null,null,null,"A","D","E","F",null,null,null,"A","A","B","E",null,null,null,null,null,"ma","thon","le","sen","ra",null,"mathonlesenra"]
[null,"A","B","F","D",null,null,null,"A","A","B","E",null,null,null,"B","C","D","E",null,null,null,"A","A","B","F",null,null,null,null,null,"ma","thon","sen","ra","le",null,"mathonsenrale"]
[null,"A","B","F","E",null,null,null,"A","A","B","F",null,null,null,"B","C","D","F",null,null,null,"A","A","C","C",null,null,null,null,null,"ma","thon","sen","le","ra",null,"mathonsenlera"]
[null,"A","C","B","D",null,null,null,"A","A","C","A",null,null,null,"B","C","E","F",null,null,null,"A","A","C","D",null,null,null,null,null,"ma","le","ra","thon","sen",null,"malerathonsen"]
[null,"A","C","B","E",null,null,null,"A","A","C","B",null,null,null,"B","D","E","F",null,null,null,"A","A","C","E",null,null,null,null,null,"ma","le","ra","sen","thon",null,"malerasenthon"]
[null,"A","C","B","F",null,null,null,"A","A","C","C",null,null,null,"C","D","E","F",null,null,null,"A","A","C","F",null,null,null,null,null,"ma","le","thon","ra","sen",null,"malethonrasen"]
[null,"A","C","D","B",null,null,null,"A","A","C","D",null,null,null,null,null,null,null,null,null,null,"A","A","D","D",null,null,null,null,null,"ma","le","thon","sen","ra",null,"malethonsenra"]
[null,"A","C","D","E",null,null,null,"A","A","C","E",null,null,null,null,null,null,null,null,null,null,"A","A","D","E",null,null,null,null,null,"ma","le","sen","ra","thon",null,"malesenrathon"]
[null,"A","C","D","F",null,null,null,"A","A","C","F",null,null,null,null,null,null,null,null,null,null,"A","A","D","F",null,null,null,null,null,"ma","le","sen","thon","ra",null,"malesenthonra"]
[null,"A","C","E","B",null,null,null,"A","A","D","A",null,null,null,null,null,null,null,null,null,null,"A","A","E","E",null,null,null,null,null,"ma","sen","ra","thon","le",null,"masenrathonle"]
[null,"A","C","E","D",null,null,null,"A","A","D","B",null,null,null,null,null,null,null,null,null,null,"A","A","E","F",null,null,null,null,null,"ma","sen","ra","le","thon",null,"masenralethon"]
[null,"A","C","E","F",null,null,null,"A","A","D","C",null,null,null,null,null,null,null,null,null,null,"A","A","F","F",null,null,null,null,null,"ma","sen","thon","ra","le",null,"masenthonrale"]
[null,"A","C","F","B",null,null,null,"A","A","D","D",null,null,null,null,null,null,null,null,null,null,"A","B","B","B",null,null,null,null,null,"ma","sen","thon","le","ra",null,"masenthonlera"]
[null,"A","C","F","D",null,null,null,"A","A","D","E",null,null,null,null,null,null,null,null,null,null,"A","B","B","C",null,null,null,null,null,"ma","sen","le","ra","thon",null,"masenlerathon"]
[null,"A","C","F","E",null,null,null,"A","A","D","F",null,null,null,null,null,null,null,null,null,null,"A","B","B","D",null,null,null,null,null,"ma","sen","le","thon","ra",null,"masenlethonra"]
[null,"A","D","B","C",null,null,null,"A","A","E","A",null,null,null,null,null,null,null,null,null,null,"A","B","B","E",null,null,null,null,null,"ra","ma","thon","le","sen",null,"ramathonlesen"]
[null,"A","D","B","E",null,null,null,"A","A","E","B",null,null,null,null,null,null,null,null,null,null,"A","B","B","F",null,null,null,null,null,"ra","ma","thon","sen","le",null,"ramathonsenle"]
[null,"A","D","B","F",null,null,null,"A","A","E","C",null,null,null,null,null,null,null,null,null,null,"A","B","C","C",null,null,null,null,null,"ra","ma","le","thon","sen",null,"ramalethonsen"]
[null,"A","D","C","B",null,null,null,"A","A","E","D",null,null,null,null,null,null,null,null,null,null,"A","B","C","D",null,null,null,null,null,"ra","ma","le","sen","thon",null,"ramalesenthon"]
[null,"A","D","C","E",null,null,null,"A","A","E","E",null,null,null,null,null,null,null,null,null,null,"A","B","C","E",null,null,null,null,null,"ra","ma","sen","thon","le",null,"ramasenthonle"]
[null,"A","D","C","F",null,null,null,"A","A","E","F",null,null,null,null,null,null,null,null,null,null,"A","B","C","F",null,null,null,null,null,"ra","ma","sen","le","thon",null,"ramasenlethon"]
[null,"A","D","E","B",null,null,null,"A","A","F","A",null,null,null,null,null,null,null,null,null,null,"A","B","D","D",null,null,null,null,null,"ra","thon","ma","le","sen",null,"rathonmalesen"]
[null,"A","D","E","C",null,null,null,"A","A","F","B",null,null,null,null,null,null,null,null,null,null,"A","B","D","E",null,null,null,null,null,"ra","thon","ma","sen","le",null,"rathonmasenle"]
[null,"A","D","E","F",null,null,null,"A","A","F","C",null,null,null,null,null,null,null,null,null,null,"A","B","D","F",null,null,null,null,null,"ra","thon","le","ma","sen",null,"rathonlemasen"]
[null,"A","D","F","B",null,null,null,"A","A","F","D",null,null,null,null,null,null,null,null,null,null,"A","B","E","E",null,null,null,null,null,"ra","thon","le","sen","ma",null,"rathonlesenma"]
[null,"A","D","F","C",null,null,null,"A","A","F","E",null,null,null,null,null,null,null,null,null,null,"A","B","E","F",null,null,null,null,null,"ra","thon","sen","ma","le",null,"rathonsenmale"]
[null,"A","D","F","E",null,null,null,"A","A","F","F",null,null,null,null,null,null,null,null,null,null,"A","B","F","F",null,null,null,null,null,"ra","thon","sen","le","ma",null,"rathonsenlema"]
[null,"A","E","B","C",null,null,null,"A","B","A","A",null,null,null,null,null,null,null,null,null,null,"A","C","C","C",null,null,null,null,null,"ra","le","ma","thon","sen",null,"ralemathonsen"]
[null,"A","E","B","D",null,null,null,"A","B","A","B",null,null,null,null,null,null,null,null,null,null,"A","C","C","D",null,null,null,null,null,"ra","le","ma","sen","thon",null,"ralemasenthon"]
[null,"A","E","B","F",null,null,null,"A","B","A","C",null,null,null,null,null,null,null,null,null,null,"A","C","C","E",null,null,null,null,null,"ra","le","thon","ma","sen",null,"ralethonmasen"]
[null,"A","E","C","B",null,null,null,"A","B","A","D",null,null,null,null,null,null,null,null,null,null,"A","C","C","F",null,null,null,null,null,"ra","le","thon","sen","ma",null,"ralethonsenma"]
[null,"A","E","C","D",null,null,null,"A","B","A","E",null,null,null,null,null,null,null,null,null,null,"A","C","D","D",null,null,null,null,null,"ra","le","sen","ma","thon",null,"ralesenmathon"]
[null,"A","E","C","F",null,null,null,"A","B","A","F",null,null,null,null,null,null,null,null,null,null,"A","C","D","E",null,null,null,null,null,"ra","le","sen","thon","ma",null,"ralesenthonma"]
[null,"A","E","D","B",null,null,null,"A","B","B","A",null,null,null,null,null,null,null,null,null,null,"A","C","D","F",null,null,null,null,null,"ra","sen","ma","thon","le",null,"rasenmathonle"]
[null,"A","E","D","C",null,null,null,"A","B","B","B",null,null,null,null,null,null,null,null,null,null,"A","C","E","E",null,null,null,null,null,"ra","sen","ma","le","thon",null,"rasenmalethon"]
[null,"A","E","D","F",null,null,null,"A","B","B","C",null,null,null,null,null,null,null,null,null,null,"A","C","E","F",null,null,null,null,null,"ra","sen","thon","ma","le",null,"rasenthonmale"]
[null,"A","E","F","B",null,null,null,"A","B","B","D",null,null,null,null,null,null,null,null,null,null,"A","C","F","F",null,null,null,null,null,"ra","sen","thon","le","ma",null,"rasenthonlema"]
[null,"A","E","F","C",null,null,null,"A","B","B","E",null,null,null,null,null,null,null,null,null,null,"A","D","D","D",null,null,null,null,null,"ra","sen","le","ma","thon",null,"rasenlemathon"]
[null,"A","E","F","D",null,null,null,"A","B","B","F",null,null,null,null,null,null,null,null,null,null,"A","D","D","E",null,null,null,null,null,"ra","sen","le","thon","ma",null,"rasenlethonma"]
[null,"A","F","B","C",null,null,null,"A","B","C","A",null,null,null,null,null,null,null,null,null,null,"A","D","D","F",null,null,null,null,null,"thon","ma","ra","le","sen",null,"thonmaralesen"]
[null,"A","F","B","D",null,null,null,"A","B","C","B",null,null,null,null,null,null,null,null,null,null,"A","D","E","E",null,null,null,null,null,"thon","ma","ra","sen","le",null,"thonmarasenle"]
[null,"A","F","B","E",null,null,null,"A","B","C","C",null,null,null,null,null,null,null,null,null,null,"A","D","E","F",null,null,null,null,null,"thon","ma","le","ra","sen",null,"thonmalerasen"]
[null,"A","F","C","B",null,null,null,"A","B","C","D",null,null,null,null,null,null,null,null,null,null,"A","D","F","F",null,null,null,null,null,"thon","ma","le","sen","ra",null,"thonmalesenra"]
[null,"A","F","C","D",null,null,null,"A","B","C","E",null,null,null,null,null,null,null,null,null,null,"A","E","E","E",null,null,null,null,null,"thon","ma","sen","ra","le",null,"thonmasenrale"]
[null,"A","F","C","E",null,null,null,"A","B","C","F",null,null,null,null,null,null,null,null,null,null,"A","E","E","F",null,null,null,null,null,"thon","ma","sen","le","ra",null,"thonmasenlera"]
[null,"A","F","D","B",null,null,null,"A","B","D","A",null,null,null,null,null,null,null,null,null,null,"A","E","F","F",null,null,null,null,null,"thon","ra","ma","le","sen",null,"thonramalesen"]
[null,"A","F","D","C",null,null,null,"A","B","D","B",null,null,null,null,null,null,null,null,null,null,"A","F","F","F",null,null,null,null,null,"thon","ra","ma","sen","le",null,"thonramasenle"]
[null,"A","F","D","E",null,null,null,"A","B","D","C",null,null,null,null,null,null,null,null,null,null,"B","B","B","B",null,null,null,null,null,"thon","ra","le","ma","sen",null,"thonralemasen"]
[null,"A","F","E","B",null,null,null,"A","B","D","D",null,null,null,null,null,null,null,null,null,null,"B","B","B","C",null,null,null,null,null,"thon","ra","le","sen","ma",null,"thonralesenma"]
[null,"A","F","E","C",null,null,null,"A","B","D","E",null,null,null,null,null,null,null,null,null,null,"B","B","B","D",null,null,null,null,null,"thon","ra","sen","ma","le",null,"thonrasenmale"]
[null,"A","F","E","D",null,null,null,"A","B","D","F",null,null,null,null,null,null,null,null,null,null,"B","B","B","E",null,null,null,null,null,"thon","ra","sen","le","ma",null,"thonrasenlema"]
[null,"B","A","C","D",null,null,null,"A","B","E","A",null,null,null,null,null,null,null,null,null,null,"B","B","B","F",null,null,null,null,null,"thon","le","ma","ra","sen",null,"thonlemarasen"]
[null,"B","A","C","E",null,null,null,"A","B","E","B",null,null,null,null,null,null,null,null,null,null,"B","B","C","C",null,null,null,null,null,"thon","le","ma","sen","ra",null,"thonlemasenra"]
[null,"B","A","C","F",null,null,null,"A","B","E","C",null,null,null,null,null,null,null,null,null,null,"B","B","C","D",null,null,null,null,null,"thon","le","ra","ma","sen",null,"thonleramasen"]
[null,"B","A","D","C",null,null,null,"A","B","E","D",null,null,null,null,null,null,null,null,null,null,"B","B","C","E",null,null,null,null,null,"thon","le","ra","sen","ma",null,"thonlerasenma"]
[null,"B","A","D","E",null,null,null,"A","B","E","E",null,null,null,null,null,null,null,null,null,null,"B","B","C","F",null,null,null,null,null,"thon","le","sen","ma","ra",null,"thonlesenmara"]
[null,"B","A","D","F",null,null,null,"A","B","E","F",null,null,null,null,null,null,null,null,null,null,"B","B","D","D",null,null,null,null,null,"thon","le","sen","ra","ma",null,{"$f":"AF76&AG76&AH76&AI76&AJ76","v":"thonlesenrama"}]
[null,"B","A","E","C",null,null,null,"A","B","F","A",null,null,null,null,null,null,null,null,null,null,"B","B","D","E",null,null,null,null,null,"thon","sen","ma","ra","le",null,"thonsenmarale"]
[null,"B","A","E","D",null,null,null,"A","B","F","B",null,null,null,null,null,null,null,null,null,null,"B","B","D","F",null,null,null,null,null,"thon","sen","ma","le","ra",null,"thonsenmalera"]
[null,"B","A","E","F",null,null,null,"A","B","F","C",null,null,null,null,null,null,null,null,null,null,"B","B","E","E",null,null,null,null,null,"thon","sen","ra","ma","le",null,"thonsenramale"]
[null,"B","A","F","C",null,null,null,"A","B","F","D",null,null,null,null,null,null,null,null,null,null,"B","B","E","F",null,null,null,null,null,"thon","sen","ra","le","ma",null,"thonsenralema"]
[null,"B","A","F","D",null,null,null,"A","B","F","E",null,null,null,null,null,null,null,null,null,null,"B","B","F","F",null,null,null,null,null,"thon","sen","le","ma","ra",null,"thonsenlemara"]
[null,"B","A","F","E",null,null,null,"A","B","F","F",null,null,null,null,null,null,null,null,null,null,"B","C","C","C",null,null,null,null,null,"thon","sen","le","ra","ma",null,"thonsenlerama"]
[null,"B","C","A","D",null,null,null,"A","C","A","A",null,null,null,null,null,null,null,null,null,null,"B","C","C","D",null,null,null,null,null,"le","ma","ra","thon","sen",null,"lemarathonsen"]
[null,"B","C","A","E",null,null,null,"A","C","A","B",null,null,null,null,null,null,null,null,null,null,"B","C","C","E",null,null,null,null,null,"le","ma","ra","sen","thon",null,"lemarasenthon"]
[null,"B","C","A","F",null,null,null,"A","C","A","C",null,null,null,null,null,null,null,null,null,null,"B","C","C","F",null,null,null,null,null,"le","ma","thon","ra","sen",null,"lemathonrasen"]
[null,"B","C","D","A",null,null,null,"A","C","A","D",null,null,null,null,null,null,null,null,null,null,"B","C","D","D",null,null,null,null,null,"le","ma","thon","sen","ra",null,"lemathonsenra"]
[null,"B","C","D","E",null,null,null,"A","C","A","E",null,null,null,null,null,null,null,null,null,null,"B","C","D","E",null,null,null,null,null,"le","ma","sen","ra","thon",null,"lemasenrathon"]
[null,"B","C","D","F",null,null,null,"A","C","A","F",null,null,null,null,null,null,null,null,null,null,"B","C","D","F",null,null,null,null,null,"le","ma","sen","thon","ra",null,"lemasenthonra"]
[null,"B","C","E","A",null,null,null,"A","C","B","A",null,null,null,null,null,null,null,null,null,null,"B","C","E","E",null,null,null,null,null,"le","ra","ma","thon","sen",null,"leramathonsen"]
[null,"B","C","E","D",null,null,null,"A","C","B","B",null,null,null,null,null,null,null,null,null,null,"B","C","E","F",null,null,null,null,null,"le","ra","ma","sen","thon",null,"leramasenthon"]
[null,"B","C","E","F",null,null,null,"A","C","B","C",null,null,null,null,null,null,null,null,null,null,"B","C","F","F",null,null,null,null,null,"le","ra","thon","ma","sen",null,"lerathonmasen"]
[null,"B","C","F","A",null,null,null,"A","C","B","D",null,null,null,null,null,null,null,null,null,null,"B","D","D","D",null,null,null,null,null,"le","ra","thon","sen","ma",null,"lerathonsenma"]
[null,"B","C","F","D",null,null,null,"A","C","B","E",null,null,null,null,null,null,null,null,null,null,"B","D","D","E",null,null,null,null,null,"le","ra","sen","ma","thon",null,"lerasenmathon"]
[null,"B","C","F","E",null,null,null,"A","C","B","F",null,null,null,null,null,null,null,null,null,null,"B","D","D","F",null,null,null,null,null,"le","ra","sen","thon","ma",null,"lerasenthonma"]
[null,"B","D","A","C",null,null,null,"A","C","C","A",null,null,null,null,null,null,null,null,null,null,"B","D","E","E",null,null,null,null,null,"le","thon","ma","ra","sen",null,"lethonmarasen"]
[null,"B","D","A","E",null,null,null,"A","C","C","B",null,null,null,null,null,null,null,null,null,null,"B","D","E","F",null,null,null,null,null,"le","thon","ma","sen","ra",null,"lethonmasenra"]
[null,"B","D","A","F",null,null,null,"A","C","C","C",null,null,null,null,null,null,null,null,null,null,"B","D","F","F",null,null,null,null,null,"le","thon","ra","ma","sen",null,"lethonramasen"]
[null,"B","D","C","A",null,null,null,"A","C","C","D",null,null,null,null,null,null,null,null,null,null,"B","E","E","E",null,null,null,null,null,"le","thon","ra","sen","ma",null,"lethonrasenma"]
[null,"B","D","C","E",null,null,null,"A","C","C","E",null,null,null,null,null,null,null,null,null,null,"B","E","E","F",null,null,null,null,null,"le","thon","sen","ma","ra",null,"lethonsenmara"]
[null,"B","D","C","F",null,null,null,"A","C","C","F",null,null,null,null,null,null,null,null,null,null,"B","E","F","F",null,null,null,null,null,"le","thon","sen","ra","ma",null,"lethonsenrama"]
[null,"B","D","E","A",null,null,null,"A","C","D","A",null,null,null,null,null,null,null,null,null,null,"B","F","F","F",null,null,null,null,null,"le","sen","ma","ra","thon",null,"lesenmarathon"]
[null,"B","D","E","C",null,null,null,"A","C","D","B",null,null,null,null,null,null,null,null,null,null,"C","C","C","C",null,null,null,null,null,"le","sen","ma","thon","ra",null,"lesenmathonra"]
[null,"B","D","E","F",null,null,null,"A","C","D","C",null,null,null,null,null,null,null,null,null,null,"C","C","C","D",null,null,null,null,null,"le","sen","ra","ma","thon",null,"lesenramathon"]
[null,"B","D","F","A",null,null,null,"A","C","D","D",null,null,null,null,null,null,null,null,null,null,"C","C","C","E",null,null,null,null,null,"le","sen","ra","thon","ma",null,"lesenrathonma"]
[null,"B","D","F","C",null,null,null,"A","C","D","E",null,null,null,null,null,null,null,null,null,null,"C","C","C","F",null,null,null,null,null,"le","sen","thon","ma","ra",null,"lesenthonmara"]
[null,"B","D","F","E",null,null,null,"A","C","D","F",null,null,null,null,null,null,null,null,null,null,"C","C","D","D",null,null,null,null,null,"le","sen","thon","ra","ma",null,"lesenthonrama"]
[null,"B","E","A","C",null,null,null,"A","C","E","A",null,null,null,null,null,null,null,null,null,null,"C","C","D","E",null,null,null,null,null,"sen","ma","ra","thon","le",null,"senmarathonle"]
[null,"B","E","A","D",null,null,null,"A","C","E","B",null,null,null,null,null,null,null,null,null,null,"C","C","D","F",null,null,null,null,null,"sen","ma","ra","le","thon",null,"senmaralethon"]
[null,"B","E","A","F",null,null,null,"A","C","E","C",null,null,null,null,null,null,null,null,null,null,"C","C","E","E",null,null,null,null,null,"sen","ma","thon","ra","le",null,"senmathonrale"]
[null,"B","E","C","A",null,null,null,"A","C","E","D",null,null,null,null,null,null,null,null,null,null,"C","C","E","F",null,null,null,null,null,"sen","ma","thon","le","ra",null,"senmathonlera"]
[null,"B","E","C","D",null,null,null,"A","C","E","E",null,null,null,null,null,null,null,null,null,null,"C","C","F","F",null,null,null,null,null,"sen","ma","le","ra","thon",null,"senmalerathon"]
[null,"B","E","C","F",null,null,null,"A","C","E","F",null,null,null,null,null,null,null,null,null,null,"C","D","D","D",null,null,null,null,null,"sen","ma","le","thon","ra",null,"senmalethonra"]
[null,"B","E","D","A",null,null,null,"A","C","F","A",null,null,null,null,null,null,null,null,null,null,"C","D","D","E",null,null,null,null,null,"sen","ra","ma","thon","le",null,"senramathonle"]
[null,"B","E","D","C",null,null,null,"A","C","F","B",null,null,null,null,null,null,null,null,null,null,"C","D","D","F",null,null,null,null,null,"sen","ra","ma","le","thon",null,"senramalethon"]
[null,"B","E","D","F",null,null,null,"A","C","F","C",null,null,null,null,null,null,null,null,null,null,"C","D","E","E",null,null,null,null,null,"sen","ra","thon","ma","le",null,"senrathonmale"]
[null,"B","E","F","A",null,null,null,"A","C","F","D",null,null,null,null,null,null,null,null,null,null,"C","D","E","F",null,null,null,null,null,"sen","ra","thon","le","ma",null,"senrathonlema"]
[null,"B","E","F","C",null,null,null,"A","C","F","E",null,null,null,null,null,null,null,null,null,null,"C","D","F","F",null,null,null,null,null,"sen","ra","le","ma","thon",null,"senralemathon"]
[null,"B","E","F","D",null,null,null,"A","C","F","F",null,null,null,null,null,null,null,null,null,null,"C","E","E","E",null,null,null,null,null,"sen","ra","le","thon","ma",null,"senralethonma"]
[null,"B","F","A","C",null,null,null,"A","D","A","A",null,null,null,null,null,null,null,null,null,null,"C","E","E","F",null,null,null,null,null,"sen","thon","ma","ra","le",null,"senthonmarale"]
[null,"B","F","A","D",null,null,null,"A","D","A","B",null,null,null,null,null,null,null,null,null,null,"C","E","F","F",null,null,null,null,null,"sen","thon","ma","le","ra",null,"senthonmalera"]
[null,"B","F","A","E",null,null,null,"A","D","A","C",null,null,null,null,null,null,null,null,null,null,"C","F","F","F",null,null,null,null,null,"sen","thon","ra","ma","le",null,"senthonramale"]
[null,"B","F","C","A",null,null,null,"A","D","A","D",null,null,null,null,null,null,null,null,null,null,"D","D","D","D",null,null,null,null,null,"sen","thon","ra","le","ma",null,"senthonralema"]
[null,"B","F","C","D",null,null,null,"A","D","A","E",null,null,null,null,null,null,null,null,null,null,"D","D","D","E",null,null,null,null,null,"sen","thon","le","ma","ra",null,"senthonlemara"]
[null,"B","F","C","E",null,null,null,"A","D","A","F",null,null,null,null,null,null,null,null,null,null,"D","D","D","F",null,null,null,null,null,"sen","thon","le","ra","ma",null,"senthonlerama"]
[null,"B","F","D","A",null,null,null,"A","D","B","A",null,null,null,null,null,null,null,null,null,null,"D","D","E","E",null,null,null,null,null,"sen","le","ma","ra","thon",null,"senlemarathon"]
[null,"B","F","D","C",null,null,null,"A","D","B","B",null,null,null,null,null,null,null,null,null,null,"D","D","E","F",null,null,null,null,null,"sen","le","ma","thon","ra",null,"senlemathonra"]
[null,"B","F","D","E",null,null,null,"A","D","B","C",null,null,null,null,null,null,null,null,null,null,"D","D","F","F",null,null,null,null,null,"sen","le","ra","ma","thon",null,"senleramathon"]
[null,"B","F","E","A",null,null,null,"A","D","B","D",null,null,null,null,null,null,null,null,null,null,"D","E","E","E",null,null,null,null,null,"sen","le","ra","thon","ma",null,"senlerathonma"]
[null,"B","F","E","C",null,null,null,"A","D","B","E",null,null,null,null,null,null,null,null,null,null,"D","E","E","F",null,null,null,null,null,"sen","le","thon","ma","ra",null,"senlethonmara"]
[null,"B","F","E","D",null,null,null,"A","D","B","F",null,null,null,null,null,null,null,null,null,null,"D","E","F","F",null,null,null,null,null,"sen","le","thon","ra","ma",null,"senlethonrama"]
[null,"C","A","B","D",null,null,null,"A","D","C","A",null,null,null,null,null,null,null,null,null,null,"D","F","F","F"]
[null,"C","A","B","E",null,null,null,"A","D","C","B",null,null,null,null,null,null,null,null,null,null,"E","E","E","E"]
[null,"C","A","B","F",null,null,null,"A","D","C","C",null,null,null,null,null,null,null,null,null,null,"E","E","E","F"]
[null,"C","A","D","B",null,null,null,"A","D","C","D",null,null,null,null,null,null,null,null,null,null,"E","E","F","F"]
[null,"C","A","D","E",null,null,null,"A","D","C","E",null,null,null,null,null,null,null,null,null,null,"E","F","F","F"]
[null,"C","A","D","F",null,null,null,"A","D","C","F",null,null,null,null,null,null,null,null,null,null,"F","F","F","F"]
[null,"C","A","E","B",null,null,null,"A","D","D","A"]
[null,"C","A","E","D",null,null,null,"A","D","D","B"]
[null,"C","A","E","F",null,null,null,"A","D","D","C"]
[null,"C","A","F","B",null,null,null,"A","D","D","D"]
[null,"C","A","F","D",null,null,null,"A","D","D","E"]
[null,"C","A","F","E",null,null,null,"A","D","D","F"]
[null,"C","B","A","D",null,null,null,"A","D","E","A"]
[null,"C","B","A","E",null,null,null,"A","D","E","B"]
[null,"C","B","A","F",null,null,null,"A","D","E","C"]
[null,"C","B","D","A",null,null,null,"A","D","E","D"]
[null,"C","B","D","E",null,null,null,"A","D","E","E"]
[null,"C","B","D","F",null,null,null,"A","D","E","F"]
[null,"C","B","E","A",null,null,null,"A","D","F","A"]
[null,"C","B","E","D",null,null,null,"A","D","F","B"]
[null,"C","B","E","F",null,null,null,"A","D","F","C"]
[null,"C","B","F","A",null,null,null,"A","D","F","D"]
[null,"C","B","F","D",null,null,null,"A","D","F","E"]
[null,"C","B","F","E",null,null,null,"A","D","F","F"]
[null,"C","D","A","B",null,null,null,"A","E","A","A"]
[null,"C","D","A","E",null,null,null,"A","E","A","B"]
[null,"C","D","A","F",null,null,null,"A","E","A","C"]
[null,"C","D","B","A",null,null,null,"A","E","A","D"]
[null,"C","D","B","E",null,null,null,"A","E","A","E"]
[null,"C","D","B","F",null,null,null,"A","E","A","F"]
[null,"C","D","E","A",null,null,null,"A","E","B","A"]
[null,"C","D","E","B",null,null,null,"A","E","B","B"]
[null,"C","D","E","F",null,null,null,"A","E","B","C"]
[null,"C","D","F","A",null,null,null,"A","E","B","D"]
[null,"C","D","F","B",null,null,null,"A","E","B","E"]
[null,"C","D","F","E",null,null,null,"A","E","B","F"]
[null,"C","E","A","B",null,null,null,"A","E","C","A"]
[null,"C","E","A","D",null,null,null,"A","E","C","B"]
[null,"C","E","A","F",null,null,null,"A","E","C","C"]
[null,"C","E","B","A",null,null,null,"A","E","C","D"]
[null,"C","E","B","D",null,null,null,"A","E","C","E"]
[null,"C","E","B","F",null,null,null,"A","E","C","F"]
[null,"C","E","D","A",null,null,null,"A","E","D","A"]
[null,"C","E","D","B",null,null,null,"A","E","D","B"]
[null,"C","E","D","F",null,null,null,"A","E","D","C"]
[null,"C","E","F","A",null,null,null,"A","E","D","D"]
[null,"C","E","F","B",null,null,null,"A","E","D","E"]
[null,"C","E","F","D",null,null,null,"A","E","D","F"]
[null,"C","F","A","B",null,null,null,"A","E","E","A"]
[null,"C","F","A","D",null,null,null,"A","E","E","B"]
[null,"C","F","A","E",null,null,null,"A","E","E","C"]
[null,"C","F","B","A",null,null,null,"A","E","E","D"]
[null,"C","F","B","D",null,null,null,"A","E","E","E"]
[null,"C","F","B","E",null,null,null,"A","E","E","F"]
[null,"C","F","D","A",null,null,null,"A","E","F","A"]
[null,"C","F","D","B",null,null,null,"A","E","F","B"]
[null,"C","F","D","E",null,null,null,"A","E","F","C"]
[null,"C","F","E","A",null,null,null,"A","E","F","D"]
[null,"C","F","E","B",null,null,null,"A","E","F","E"]
[null,"C","F","E","D",null,null,null,"A","E","F","F"]
[null,"D","A","B","C",null,null,null,"A","F","A","A"]
[null,"D","A","B","E",null,null,null,"A","F","A","B"]
[null,"D","A","B","F",null,null,null,"A","F","A","C"]
[null,"D","A","C","B",null,null,null,"A","F","A","D"]
[null,"D","A","C","E",null,null,null,"A","F","A","E"]
[null,"D","A","C","F",null,null,null,"A","F","A","F"]
[null,"D","A","E","B",null,null,null,"A","F","B","A"]
[null,"D","A","E","C",null,null,null,"A","F","B","B"]
[null,"D","A","E","F",null,null,null,"A","F","B","C"]
[null,"D","A","F","B",null,null,null,"A","F","B","D"]
[null,"D","A","F","C",null,null,null,"A","F","B","E"]
[null,"D","A","F","E",null,null,null,"A","F","B","F"]
[null,"D","B","A","C",null,null,null,"A","F","C","A"]
[null,"D","B","A","E",null,null,null,"A","F","C","B"]
[null,"D","B","A","F",null,null,null,"A","F","C","C"]
[null,"D","B","C","A",null,null,null,"A","F","C","D"]
[null,"D","B","C","E",null,null,null,"A","F","C","E"]
[null,"D","B","C","F",null,null,null,"A","F","C","F"]
[null,"D","B","E","A",null,null,null,"A","F","D","A"]
[null,"D","B","E","C",null,null,null,"A","F","D","B"]
[null,"D","B","E","F",null,null,null,"A","F","D","C"]
[null,"D","B","F","A",null,null,null,"A","F","D","D"]
[null,"D","B","F","C",null,null,null,"A","F","D","E"]
[null,"D","B","F","E",null,null,null,"A","F","D","F"]
[null,"D","C","A","B",null,null,null,"A","F","E","A"]
[null,"D","C","A","E",null,null,null,"A","F","E","B"]
[null,"D","C","A","F",null,null,null,"A","F","E","C"]
[null,"D","C","B","A",null,null,null,"A","F","E","D"]
[null,"D","C","B","E",null,null,null,"A","F","E","E"]
[null,"D","C","B","F",null,null,null,"A","F","E","F"]
[null,"D","C","E","A",null,null,null,"A","F","F","A"]
[null,"D","C","E","B",null,null,null,"A","F","F","B"]
[null,"D","C","E","F",null,null,null,"A","F","F","C"]
[null,"D","C","F","A",null,null,null,"A","F","F","D"]
[null,"D","C","F","B",null,null,null,"A","F","F","E"]
[null,"D","C","F","E",null,null,null,"A","F","F","F"]
[null,"D","E","A","B",null,null,null,"B","A","A","A"]
[null,"D","E","A","C",null,null,null,"B","A","A","B"]
[null,"D","E","A","F",null,null,null,"B","A","A","C"]
[null,"D","E","B","A",null,null,null,"B","A","A","D"]
[null,"D","E","B","C",null,null,null,"B","A","A","E"]
[null,"D","E","B","F",null,null,null,"B","A","A","F"]
[null,"D","E","C","A",null,null,null,"B","A","B","A"]
[null,"D","E","C","B",null,null,null,"B","A","B","B"]
[null,"D","E","C","F",null,null,null,"B","A","B","C"]
[null,"D","E","F","A",null,null,null,"B","A","B","D"]
[null,"D","E","F","B",null,null,null,"B","A","B","E"]
[null,"D","E","F","C",null,null,null,"B","A","B","F"]
[null,"D","F","A","B",null,null,null,"B","A","C","A"]
[null,"D","F","A","C",null,null,null,"B","A","C","B"]
[null,"D","F","A","E",null,null,null,"B","A","C","C"]
[null,"D","F","B","A",null,null,null,"B","A","C","D"]
[null,"D","F","B","C",null,null,null,"B","A","C","E"]
[null,"D","F","B","E",null,null,null,"B","A","C","F"]
[null,"D","F","C","A",null,null,null,"B","A","D","A"]
[null,"D","F","C","B",null,null,null,"B","A","D","B"]
[null,"D","F","C","E",null,null,null,"B","A","D","C"]
[null,"D","F","E","A",null,null,null,"B","A","D","D"]
[null,"D","F","E","B",null,null,null,"B","A","D","E"]
[null,"D","F","E","C",null,null,null,"B","A","D","F"]
[null,"E","A","B","C",null,null,null,"B","A","E","A"]
[null,"E","A","B","D",null,null,null,"B","A","E","B"]
[null,"E","A","B","F",null,null,null,"B","A","E","C"]
[null,"E","A","C","B",null,null,null,"B","A","E","D"]
[null,"E","A","C","D",null,null,null,"B","A","E","E"]
[null,"E","A","C","F",null,null,null,"B","A","E","F"]
[null,"E","A","D","B",null,null,null,"B","A","F","A"]
[null,"E","A","D","C",null,null,null,"B","A","F","B"]
[null,"E","A","D","F",null,null,null,"B","A","F","C"]
[null,"E","A","F","B",null,null,null,"B","A","F","D"]
[null,"E","A","F","C",null,null,null,"B","A","F","E"]
[null,"E","A","F","D",null,null,null,"B","A","F","F"]
[null,"E","B","A","C",null,null,null,"B","B","A","A"]
[null,"E","B","A","D",null,null,null,"B","B","A","B"]
[null,"E","B","A","F",null,null,null,"B","B","A","C"]
[null,"E","B","C","A",null,null,null,"B","B","A","D"]
[null,"E","B","C","D",null,null,null,"B","B","A","E"]
[null,"E","B","C","F",null,null,null,"B","B","A","F"]
[null,"E","B","D","A",null,null,null,"B","B","B","A"]
[null,"E","B","D","C",null,null,null,"B","B","B","B"]
[null,"E","B","D","F",null,null,null,"B","B","B","C"]
[null,"E","B","F","A",null,null,null,"B","B","B","D"]
[null,"E","B","F","C",null,null,null,"B","B","B","E"]
[null,"E","B","F","D",null,null,null,"B","B","B","F"]
[null,"E","C","A","B",null,null,null,"B","B","C","A"]
[null,"E","C","A","D",null,null,null,"B","B","C","B"]
[null,"E","C","A","F",null,null,null,"B","B","C","C"]
[null,"E","C","B","A",null,null,null,"B","B","C","D"]
[null,"E","C","B","D",null,null,null,"B","B","C","E"]
[null,"E","C","B","F",null,null,null,"B","B","C","F"]
[null,"E","C","D","A",null,null,null,"B","B","D","A"]
[null,"E","C","D","B",null,null,null,"B","B","D","B"]
[null,"E","C","D","F",null,null,null,"B","B","D","C"]
[null,"E","C","F","A",null,null,null,"B","B","D","D"]
[null,"E","C","F","B",null,null,null,"B","B","D","E"]
[null,"E","C","F","D",null,null,null,"B","B","D","F"]
[null,"E","D","A","B",null,null,null,"B","B","E","A"]
[null,"E","D","A","C",null,null,null,"B","B","E","B"]
[null,"E","D","A","F",null,null,null,"B","B","E","C"]
[null,"E","D","B","A",null,null,null,"B","B","E","D"]
[null,"E","D","B","C",null,null,null,"B","B","E","E"]
[null,"E","D","B","F",null,null,null,"B","B","E","F"]
[null,"E","D","C","A",null,null,null,"B","B","F","A"]
[null,"E","D","C","B",null,null,null,"B","B","F","B"]
[null,"E","D","C","F",null,null,null,"B","B","F","C"]
[null,"E","D","F","A",null,null,null,"B","B","F","D"]
[null,"E","D","F","B",null,null,null,"B","B","F","E"]
[null,"E","D","F","C",null,null,null,"B","B","F","F"]
[null,"E","F","A","B",null,null,null,"B","C","A","A"]
[null,"E","F","A","C",null,null,null,"B","C","A","B"]
[null,"E","F","A","D",null,null,null,"B","C","A","C"]
[null,"E","F","B","A",null,null,null,"B","C","A","D"]
[null,"E","F","B","C",null,null,null,"B","C","A","E"]
[null,"E","F","B","D",null,null,null,"B","C","A","F"]
[null,"E","F","C","A",null,null,null,"B","C","B","A"]
[null,"E","F","C","B",null,null,null,"B","C","B","B"]
[null,"E","F","C","D",null,null,null,"B","C","B","C"]
[null,"E","F","D","A",null,null,null,"B","C","B","D"]
[null,"E","F","D","B",null,null,null,"B","C","B","E"]
[null,"E","F","D","C",null,null,null,"B","C","B","F"]
[null,"F","A","B","C",null,null,null,"B","C","C","A"]
[null,"F","A","B","D",null,null,null,"B","C","C","B"]
[null,"F","A","B","E",null,null,null,"B","C","C","C"]
[null,"F","A","C","B",null,null,null,"B","C","C","D"]
[null,"F","A","C","D",null,null,null,"B","C","C","E"]
[null,"F","A","C","E",null,null,null,"B","C","C","F"]
[null,"F","A","D","B",null,null,null,"B","C","D","A"]
[null,"F","A","D","C",null,null,null,"B","C","D","B"]
[null,"F","A","D","E",null,null,null,"B","C","D","C"]
[null,"F","A","E","B",null,null,null,"B","C","D","D"]
[null,"F","A","E","C",null,null,null,"B","C","D","E"]
[null,"F","A","E","D",null,null,null,"B","C","D","F"]
[null,"F","B","A","C",null,null,null,"B","C","E","A"]
[null,"F","B","A","D",null,null,null,"B","C","E","B"]
[null,"F","B","A","E",null,null,null,"B","C","E","C"]
[null,"F","B","C","A",null,null,null,"B","C","E","D"]
[null,"F","B","C","D",null,null,null,"B","C","E","E"]
[null,"F","B","C","E",null,null,null,"B","C","E","F"]
[null,"F","B","D","A",null,null,null,"B","C","F","A"]
[null,"F","B","D","C",null,null,null,"B","C","F","B"]
[null,"F","B","D","E",null,null,null,"B","C","F","C"]
[null,"F","B","E","A",null,null,null,"B","C","F","D"]
[null,"F","B","E","C",null,null,null,"B","C","F","E"]
[null,"F","B","E","D",null,null,null,"B","C","F","F"]
[null,"F","C","A","B",null,null,null,"B","D","A","A"]
[null,"F","C","A","D",null,null,null,"B","D","A","B"]
[null,"F","C","A","E",null,null,null,"B","D","A","C"]
[null,"F","C","B","A",null,null,null,"B","D","A","D"]
[null,"F","C","B","D",null,null,null,"B","D","A","E"]
[null,"F","C","B","E",null,null,null,"B","D","A","F"]
[null,"F","C","D","A",null,null,null,"B","D","B","A"]
[null,"F","C","D","B",null,null,null,"B","D","B","B"]
[null,"F","C","D","E",null,null,null,"B","D","B","C"]
[null,"F","C","E","A",null,null,null,"B","D","B","D"]
[null,"F","C","E","B",null,null,null,"B","D","B","E"]
[null,"F","C","E","D",null,null,null,"B","D","B","F"]
[null,"F","D","A","B",null,null,null,"B","D","C","A"]
[null,"F","D","A","C",null,null,null,"B","D","C","B"]
[null,"F","D","A","E",null,null,null,"B","D","C","C"]
[null,"F","D","B","A",null,null,null,"B","D","C","D"]
[null,"F","D","B","C",null,null,null,"B","D","C","E"]
[null,"F","D","B","E",null,null,null,"B","D","C","F"]
[null,"F","D","C","A",null,null,null,"B","D","D","A"]
[null,"F","D","C","B",null,null,null,"B","D","D","B"]
[null,"F","D","C","E",null,null,null,"B","D","D","C"]
[null,"F","D","E","A",null,null,null,"B","D","D","D"]
[null,"F","D","E","B",null,null,null,"B","D","D","E"]
[null,"F","D","E","C",null,null,null,"B","D","D","F"]
[null,"F","E","A","B",null,null,null,"B","D","E","A"]
[null,"F","E","A","C",null,null,null,"B","D","E","B"]
[null,"F","E","A","D",null,null,null,"B","D","E","C"]
[null,"F","E","B","A",null,null,null,"B","D","E","D"]
[null,"F","E","B","C",null,null,null,"B","D","E","E"]
[null,"F","E","B","D",null,null,null,"B","D","E","F"]
[null,"F","E","C","A",null,null,null,"B","D","F","A"]
[null,"F","E","C","B",null,null,null,"B","D","F","B"]
[null,"F","E","C","D",null,null,null,"B","D","F","C"]
[null,"F","E","D","A",null,null,null,"B","D","F","D"]
[null,"F","E","D","B",null,null,null,"B","D","F","E"]
[null,"F","E","D","C",null,null,null,"B","D","F","F"]
[null,null,null,null,null,null,null,null,"B","E","A","A"]
[null,null,null,null,null,null,null,null,"B","E","A","B"]
[null,null,null,null,null,null,null,null,"B","E","A","C"]
[null,null,null,null,null,null,null,null,"B","E","A","D"]
[null,null,null,null,null,null,null,null,"B","E","A","E"]
[null,null,null,null,null,null,null,null,"B","E","A","F"]
[null,null,null,null,null,null,null,null,"B","E","B","A"]
[null,null,null,null,null,null,null,null,"B","E","B","B"]
[null,null,null,null,null,null,null,null,"B","E","B","C"]
[null,null,null,null,null,null,null,null,"B","E","B","D"]
[null,null,null,null,null,null,null,null,"B","E","B","E"]
[null,null,null,null,null,null,null,null,"B","E","B","F"]
[null,null,null,null,null,null,null,null,"B","E","C","A"]
[null,null,null,null,null,null,null,null,"B","E","C","B"]
[null,null,null,null,null,null,null,null,"B","E","C","C"]
[null,null,null,null,null,null,null,null,"B","E","C","D"]
[null,null,null,null,null,null,null,null,"B","E","C","E"]
[null,null,null,null,null,null,null,null,"B","E","C","F"]
[null,null,null,null,null,null,null,null,"B","E","D","A"]
[null,null,null,null,null,null,null,null,"B","E","D","B"]
[null,null,null,null,null,null,null,null,"B","E","D","C"]
[null,null,null,null,null,null,null,null,"B","E","D","D"]
[null,null,null,null,null,null,null,null,"B","E","D","E"]
[null,null,null,null,null,null,null,null,"B","E","D","F"]
[null,null,null,null,null,null,null,null,"B","E","E","A"]
[null,null,null,null,null,null,null,null,"B","E","E","B"]
[null,null,null,null,null,null,null,null,"B","E","E","C"]
[null,null,null,null,null,null,null,null,"B","E","E","D"]
[null,null,null,null,null,null,null,null,"B","E","E","E"]
[null,null,null,null,null,null,null,null,"B","E","E","F"]
[null,null,null,null,null,null,null,null,"B","E","F","A"]
[null,null,null,null,null,null,null,null,"B","E","F","B"]
[null,null,null,null,null,null,null,null,"B","E","F","C"]
[null,null,null,null,null,null,null,null,"B","E","F","D"]
[null,null,null,null,null,null,null,null,"B","E","F","E"]
[null,null,null,null,null,null,null,null,"B","E","F","F"]
[null,null,null,null,null,null,null,null,"B","F","A","A"]
[null,null,null,null,null,null,null,null,"B","F","A","B"]
[null,null,null,null,null,null,null,null,"B","F","A","C"]
[null,null,null,null,null,null,null,null,"B","F","A","D"]
[null,null,null,null,null,null,null,null,"B","F","A","E"]
[null,null,null,null,null,null,null,null,"B","F","A","F"]
[null,null,null,null,null,null,null,null,"B","F","B","A"]
[null,null,null,null,null,null,null,null,"B","F","B","B"]
[null,null,null,null,null,null,null,null,"B","F","B","C"]
[null,null,null,null,null,null,null,null,"B","F","B","D"]
[null,null,null,null,null,null,null,null,"B","F","B","E"]
[null,null,null,null,null,null,null,null,"B","F","B","F"]
[null,null,null,null,null,null,null,null,"B","F","C","A"]
[null,null,null,null,null,null,null,null,"B","F","C","B"]
[null,null,null,null,null,null,null,null,"B","F","C","C"]
[null,null,null,null,null,null,null,null,"B","F","C","D"]
[null,null,null,null,null,null,null,null,"B","F","C","E"]
[null,null,null,null,null,null,null,null,"B","F","C","F"]
[null,null,null,null,null,null,null,null,"B","F","D","A"]
[null,null,null,null,null,null,null,null,"B","F","D","B"]
[null,null,null,null,null,null,null,null,"B","F","D","C"]
[null,null,null,null,null,null,null,null,"B","F","D","D"]
[null,null,null,null,null,null,null,null,"B","F","D","E"]
[null,null,null,null,null,null,null,null,"B","F","D","F"]
[null,null,null,null,null,null,null,null,"B","F","E","A"]
[null,null,null,null,null,null,null,null,"B","F","E","B"]
[null,null,null,null,null,null,null,null,"B","F","E","C"]
[null,null,null,null,null,null,null,null,"B","F","E","D"]
[null,null,null,null,null,null,null,null,"B","F","E","E"]
[null,null,null,null,null,null,null,null,"B","F","E","F"]
[null,null,null,null,null,null,null,null,"B","F","F","A"]
[null,null,null,null,null,null,null,null,"B","F","F","B"]
[null,null,null,null,null,null,null,null,"B","F","F","C"]
[null,null,null,null,null,null,null,null,"B","F","F","D"]
[null,null,null,null,null,null,null,null,"B","F","F","E"]
[null,null,null,null,null,null,null,null,"B","F","F","F"]
[null,null,null,null,null,null,null,null,"C","A","A","A"]
[null,null,null,null,null,null,null,null,"C","A","A","B"]
[null,null,null,null,null,null,null,null,"C","A","A","C"]
[null,null,null,null,null,null,null,null,"C","A","A","D"]
[null,null,null,null,null,null,null,null,"C","A","A","E"]
[null,null,null,null,null,null,null,null,"C","A","A","F"]
[null,null,null,null,null,null,null,null,"C","A","B","A"]
[null,null,null,null,null,null,null,null,"C","A","B","B"]
[null,null,null,null,null,null,null,null,"C","A","B","C"]
[null,null,null,null,null,null,null,null,"C","A","B","D"]
[null,null,null,null,null,null,null,null,"C","A","B","E"]
[null,null,null,null,null,null,null,null,"C","A","B","F"]
[null,null,null,null,null,null,null,null,"C","A","C","A"]
[null,null,null,null,null,null,null,null,"C","A","C","B"]
[null,null,null,null,null,null,null,null,"C","A","C","C"]
[null,null,null,null,null,null,null,null,"C","A","C","D"]
[null,null,null,null,null,null,null,null,"C","A","C","E"]
[null,null,null,null,null,null,null,null,"C","A","C","F"]
[null,null,null,null,null,null,null,null,"C","A","D","A"]
[null,null,null,null,null,null,null,null,"C","A","D","B"]
[null,null,null,null,null,null,null,null,"C","A","D","C"]
[null,null,null,null,null,null,null,null,"C","A","D","D"]
[null,null,null,null,null,null,null,null,"C","A","D","E"]
[null,null,null,null,null,null,null,null,"C","A","D","F"]
[null,null,null,null,null,null,null,null,"C","A","E","A"]
[null,null,null,null,null,null,null,null,"C","A","E","B"]
[null,null,null,null,null,null,null,null,"C","A","E","C"]
[null,null,null,null,null,null,null,null,"C","A","E","D"]
[null,null,null,null,null,null,null,null,"C","A","E","E"]
[null,null,null,null,null,null,null,null,"C","A","E","F"]
[null,null,null,null,null,null,null,null,"C","A","F","A"]
[null,null,null,null,null,null,null,null,"C","A","F","B"]
[null,null,null,null,null,null,null,null,"C","A","F","C"]
[null,null,null,null,null,null,null,null,"C","A","F","D"]
[null,null,null,null,null,null,null,null,"C","A","F","E"]
[null,null,null,null,null,null,null,null,"C","A","F","F"]
[null,null,null,null,null,null,null,null,"C","B","A","A"]
[null,null,null,null,null,null,null,null,"C","B","A","B"]
[null,null,null,null,null,null,null,null,"C","B","A","C"]
[null,null,null,null,null,null,null,null,"C","B","A","D"]
[null,null,null,null,null,null,null,null,"C","B","A","E"]
[null,null,null,null,null,null,null,null,"C","B","A","F"]
[null,null,null,null,null,null,null,null,"C","B","B","A"]
[null,null,null,null,null,null,null,null,"C","B","B","B"]
[null,null,null,null,null,null,null,null,"C","B","B","C"]
[null,null,null,null,null,null,null,null,"C","B","B","D"]
[null,null,null,null,null,null,null,null,"C","B","B","E"]
[null,null,null,null,null,null,null,null,"C","B","B","F"]
[null,null,null,null,null,null,null,null,"C","B","C","A"]
[null,null,null,null,null,null,null,null,"C","B","C","B"]
[null,null,null,null,null,null,null,null,"C","B","C","C"]
[null,null,null,null,null,null,null,null,"C","B","C","D"]
[null,null,null,null,null,null,null,null,"C","B","C","E"]
[null,null,null,null,null,null,null,null,"C","B","C","F"]
[null,null,null,null,null,null,null,null,"C","B","D","A"]
[null,null,null,null,null,null,null,null,"C","B","D","B"]
[null,null,null,null,null,null,null,null,"C","B","D","C"]
[null,null,null,null,null,null,null,null,"C","B","D","D"]
[null,null,null,null,null,null,null,null,"C","B","D","E"]
[null,null,null,null,null,null,null,null,"C","B","D","F"]
[null,null,null,null,null,null,null,null,"C","B","E","A"]
[null,null,null,null,null,null,null,null,"C","B","E","B"]
[null,null,null,null,null,null,null,null,"C","B","E","C"]
[null,null,null,null,null,null,null,null,"C","B","E","D"]
[null,null,null,null,null,null,null,null,"C","B","E","E"]
[null,null,null,null,null,null,null,null,"C","B","E","F"]
[null,null,null,null,null,null,null,null,"C","B","F","A"]
[null,null,null,null,null,null,null,null,"C","B","F","B"]
[null,null,null,null,null,null,null,null,"C","B","F","C"]
[null,null,null,null,null,null,null,null,"C","B","F","D"]
[null,null,null,null,null,null,null,null,"C","B","F","E"]
[null,null,null,null,null,null,null,null,"C","B","F","F"]
[null,null,null,null,null,null,null,null,"C","C","A","A"]
[null,null,null,null,null,null,null,null,"C","C","A","B"]
[null,null,null,null,null,null,null,null,"C","C","A","C"]
[null,null,null,null,null,null,null,null,"C","C","A","D"]
[null,null,null,null,null,null,null,null,"C","C","A","E"]
[null,null,null,null,null,null,null,null,"C","C","A","F"]
[null,null,null,null,null,null,null,null,"C","C","B","A"]
[null,null,null,null,null,null,null,null,"C","C","B","B"]
[null,null,null,null,null,null,null,null,"C","C","B","C"]
[null,null,null,null,null,null,null,null,"C","C","B","D"]
[null,null,null,null,null,null,null,null,"C","C","B","E"]
[null,null,null,null,null,null,null,null,"C","C","B","F"]
[null,null,null,null,null,null,null,null,"C","C","C","A"]
[null,null,null,null,null,null,null,null,"C","C","C","B"]
[null,null,null,null,null,null,null,null,"C","C","C","C"]
[null,null,null,null,null,null,null,null,"C","C","C","D"]
[null,null,null,null,null,null,null,null,"C","C","C","E"]
[null,null,null,null,null,null,null,null,"C","C","C","F"]
[null,null,null,null,null,null,null,null,"C","C","D","A"]
[null,null,null,null,null,null,null,null,"C","C","D","B"]
[null,null,null,null,null,null,null,null,"C","C","D","C"]
[null,null,null,null,null,null,null,null,"C","C","D","D"]
[null,null,null,null,null,null,null,null,"C","C","D","E"]
[null,null,null,null,null,null,null,null,"C","C","D","F"]
[null,null,null,null,null,null,null,null,"C","C","E","A"]
[null,null,null,null,null,null,null,null,"C","C","E","B"]
[null,null,null,null,null,null,null,null,"C","C","E","C"]
[null,null,null,null,null,null,null,null,"C","C","E","D"]
[null,null,null,null,null,null,null,null,"C","C","E","E"]
[null,null,null,null,null,null,null,null,"C","C","E","F"]
[null,null,null,null,null,null,null,null,"C","C","F","A"]
[null,null,null,null,null,null,null,null,"C","C","F","B"]
[null,null,null,null,null,null,null,null,"C","C","F","C"]
[null,null,null,null,null,null,null,null,"C","C","F","D"]
[null,null,null,null,null,null,null,null,"C","C","F","E"]
[null,null,null,null,null,null,null,null,"C","C","F","F"]
[null,null,null,null,null,null,null,null,"C","D","A","A"]
[null,null,null,null,null,null,null,null,"C","D","A","B"]
[null,null,null,null,null,null,null,null,"C","D","A","C"]
[null,null,null,null,null,null,null,null,"C","D","A","D"]
[null,null,null,null,null,null,null,null,"C","D","A","E"]
[null,null,null,null,null,null,null,null,"C","D","A","F"]
[null,null,null,null,null,null,null,null,"C","D","B","A"]
[null,null,null,null,null,null,null,null,"C","D","B","B"]
[null,null,null,null,null,null,null,null,"C","D","B","C"]
[null,null,null,null,null,null,null,null,"C","D","B","D"]
[null,null,null,null,null,null,null,null,"C","D","B","E"]
[null,null,null,null,null,null,null,null,"C","D","B","F"]
[null,null,null,null,null,null,null,null,"C","D","C","A"]
[null,null,null,null,null,null,null,null,"C","D","C","B"]
[null,null,null,null,null,null,null,null,"C","D","C","C"]
[null,null,null,null,null,null,null,null,"C","D","C","D"]
[null,null,null,null,null,null,null,null,"C","D","C","E"]
[null,null,null,null,null,null,null,null,"C","D","C","F"]
[null,null,null,null,null,null,null,null,"C","D","D","A"]
[null,null,null,null,null,null,null,null,"C","D","D","B"]
[null,null,null,null,null,null,null,null,"C","D","D","C"]
[null,null,null,null,null,null,null,null,"C","D","D","D"]
[null,null,null,null,null,null,null,null,"C","D","D","E"]
[null,null,null,null,null,null,null,null,"C","D","D","F"]
[null,null,null,null,null,null,null,null,"C","D","E","A"]
[null,null,null,null,null,null,null,null,"C","D","E","B"]
[null,null,null,null,null,null,null,null,"C","D","E","C"]
[null,null,null,null,null,null,null,null,"C","D","E","D"]
[null,null,null,null,null,null,null,null,"C","D","E","E"]
[null,null,null,null,null,null,null,null,"C","D","E","F"]
[null,null,null,null,null,null,null,null,"C","D","F","A"]
[null,null,null,null,null,null,null,null,"C","D","F","B"]
[null,null,null,null,null,null,null,null,"C","D","F","C"]
[null,null,null,null,null,null,null,null,"C","D","F","D"]
[null,null,null,null,null,null,null,null,"C","D","F","E"]
[null,null,null,null,null,null,null,null,"C","D","F","F"]
[null,null,null,null,null,null,null,null,"C","E","A","A"]
[null,null,null,null,null,null,null,null,"C","E","A","B"]
[null,null,null,null,null,null,null,null,"C","E","A","C"]
[null,null,null,null,null,null,null,null,"C","E","A","D"]
[null,null,null,null,null,null,null,null,"C","E","A","E"]
[null,null,null,null,null,null,null,null,"C","E","A","F"]
[null,null,null,null,null,null,null,null,"C","E","B","A"]
[null,null,null,null,null,null,null,null,"C","E","B","B"]
[null,null,null,null,null,null,null,null,"C","E","B","C"]
[null,null,null,null,null,null,null,null,"C","E","B","D"]
[null,null,null,null,null,null,null,null,"C","E","B","E"]
[null,null,null,null,null,null,null,null,"C","E","B","F"]
[null,null,null,null,null,null,null,null,"C","E","C","A"]
[null,null,null,null,null,null,null,null,"C","E","C","B"]
[null,null,null,null,null,null,null,null,"C","E","C","C"]
[null,null,null,null,null,null,null,null,"C","E","C","D"]
[null,null,null,null,null,null,null,null,"C","E","C","E"]
[null,null,null,null,null,null,null,null,"C","E","C","F"]
[null,null,null,null,null,null,null,null,"C","E","D","A"]
[null,null,null,null,null,null,null,null,"C","E","D","B"]
[null,null,null,null,null,null,null,null,"C","E","D","C"]
[null,null,null,null,null,null,null,null,"C","E","D","D"]
[null,null,null,null,null,null,null,null,"C","E","D","E"]
[null,null,null,null,null,null,null,null,"C","E","D","F"]
[null,null,null,null,null,null,null,null,"C","E","E","A"]
[null,null,null,null,null,null,null,null,"C","E","E","B"]
[null,null,null,null,null,null,null,null,"C","E","E","C"]
[null,null,null,null,null,null,null,null,"C","E","E","D"]
[null,null,null,null,null,null,null,null,"C","E","E","E"]
[null,null,null,null,null,null,null,null,"C","E","E","F"]
[null,null,null,null,null,null,null,null,"C","E","F","A"]
[null,null,null,null,null,null,null,null,"C","E","F","B"]
[null,null,null,null,null,null,null,null,"C","E","F","C"]
[null,null,null,null,null,null,null,null,"C","E","F","D"]
[null,null,null,null,null,null,null,null,"C","E","F","E"]
[null,null,null,null,null,null,null,null,"C","E","F","F"]
[null,null,null,null,null,null,null,null,"C","F","A","A"]
[null,null,null,null,null,null,null,null,"C","F","A","B"]
[null,null,null,null,null,null,null,null,"C","F","A","C"]
[null,null,null,null,null,null,null,null,"C","F","A","D"]
[null,null,null,null,null,null,null,null,"C","F","A","E"]
[null,null,null,null,null,null,null,null,"C","F","A","F"]
[null,null,null,null,null,null,null,null,"C","F","B","A"]
[null,null,null,null,null,null,null,null,"C","F","B","B"]
[null,null,null,null,null,null,null,null,"C","F","B","C"]
[null,null,null,null,null,null,null,null,"C","F","B","D"]
[null,null,null,null,null,null,null,null,"C","F","B","E"]
[null,null,null,null,null,null,null,null,"C","F","B","F"]
[null,null,null,null,null,null,null,null,"C","F","C","A"]
[null,null,null,null,null,null,null,null,"C","F","C","B"]
[null,null,null,null,null,null,null,null,"C","F","C","C"]
[null,null,null,null,null,null,null,null,"C","F","C","D"]
[null,null,null,null,null,null,null,null,"C","F","C","E"]
[null,null,null,null,null,null,null,null,"C","F","C","F"]
[null,null,null,null,null,null,null,null,"C","F","D","A"]
[null,null,null,null,null,null,null,null,"C","F","D","B"]
[null,null,null,null,null,null,null,null,"C","F","D","C"]
[null,null,null,null,null,null,null,null,"C","F","D","D"]
[null,null,null,null,null,null,null,null,"C","F","D","E"]
[null,null,null,null,null,null,null,null,"C","F","D","F"]
[null,null,null,null,null,null,null,null,"C","F","E","A"]
[null,null,null,null,null,null,null,null,"C","F","E","B"]
[null,null,null,null,null,null,null,null,"C","F","E","C"]
[null,null,null,null,null,null,null,null,"C","F","E","D"]
[null,null,null,null,null,null,null,null,"C","F","E","E"]
[null,null,null,null,null,null,null,null,"C","F","E","F"]
[null,null,null,null,null,null,null,null,"C","F","F","A"]
[null,null,null,null,null,null,null,null,"C","F","F","B"]
[null,null,null,null,null,null,null,null,"C","F","F","C"]
[null,null,null,null,null,null,null,null,"C","F","F","D"]
[null,null,null,null,null,null,null,null,"C","F","F","E"]
[null,null,null,null,null,null,null,null,"C","F","F","F"]
[null,null,null,null,null,null,null,null,"D","A","A","A"]
[null,null,null,null,null,null,null,null,"D","A","A","B"]
[null,null,null,null,null,null,null,null,"D","A","A","C"]
[null,null,null,null,null,null,null,null,"D","A","A","D"]
[null,null,null,null,null,null,null,null,"D","A","A","E"]
[null,null,null,null,null,null,null,null,"D","A","A","F"]
[null,null,null,null,null,null,null,null,"D","A","B","A"]
[null,null,null,null,null,null,null,null,"D","A","B","B"]
[null,null,null,null,null,null,null,null,"D","A","B","C"]
[null,null,null,null,null,null,null,null,"D","A","B","D"]
[null,null,null,null,null,null,null,null,"D","A","B","E"]
[null,null,null,null,null,null,null,null,"D","A","B","F"]
[null,null,null,null,null,null,null,null,"D","A","C","A"]
[null,null,null,null,null,null,null,null,"D","A","C","B"]
[null,null,null,null,null,null,null,null,"D","A","C","C"]
[null,null,null,null,null,null,null,null,"D","A","C","D"]
[null,null,null,null,null,null,null,null,"D","A","C","E"]
[null,null,null,null,null,null,null,null,"D","A","C","F"]
[null,null,null,null,null,null,null,null,"D","A","D","A"]
[null,null,null,null,null,null,null,null,"D","A","D","B"]
[null,null,null,null,null,null,null,null,"D","A","D","C"]
[null,null,null,null,null,null,null,null,"D","A","D","D"]
[null,null,null,null,null,null,null,null,"D","A","D","E"]
[null,null,null,null,null,null,null,null,"D","A","D","F"]
[null,null,null,null,null,null,null,null,"D","A","E","A"]
[null,null,null,null,null,null,null,null,"D","A","E","B"]
[null,null,null,null,null,null,null,null,"D","A","E","C"]
[null,null,null,null,null,null,null,null,"D","A","E","D"]
[null,null,null,null,null,null,null,null,"D","A","E","E"]
[null,null,null,null,null,null,null,null,"D","A","E","F"]
[null,null,null,null,null,null,null,null,"D","A","F","A"]
[null,null,null,null,null,null,null,null,"D","A","F","B"]
[null,null,null,null,null,null,null,null,"D","A","F","C"]
[null,null,null,null,null,null,null,null,"D","A","F","D"]
[null,null,null,null,null,null,null,null,"D","A","F","E"]
[null,null,null,null,null,null,null,null,"D","A","F","F"]
[null,null,null,null,null,null,null,null,"D","B","A","A"]
[null,null,null,null,null,null,null,null,"D","B","A","B"]
[null,null,null,null,null,null,null,null,"D","B","A","C"]
[null,null,null,null,null,null,null,null,"D","B","A","D"]
[null,null,null,null,null,null,null,null,"D","B","A","E"]
[null,null,null,null,null,null,null,null,"D","B","A","F"]
[null,null,null,null,null,null,null,null,"D","B","B","A"]
[null,null,null,null,null,null,null,null,"D","B","B","B"]
[null,null,null,null,null,null,null,null,"D","B","B","C"]
[null,null,null,null,null,null,null,null,"D","B","B","D"]
[null,null,null,null,null,null,null,null,"D","B","B","E"]
[null,null,null,null,null,null,null,null,"D","B","B","F"]
[null,null,null,null,null,null,null,null,"D","B","C","A"]
[null,null,null,null,null,null,null,null,"D","B","C","B"]
[null,null,null,null,null,null,null,null,"D","B","C","C"]
[null,null,null,null,null,null,null,null,"D","B","C","D"]
[null,null,null,null,null,null,null,null,"D","B","C","E"]
[null,null,null,null,null,null,null,null,"D","B","C","F"]
[null,null,null,null,null,null,null,null,"D","B","D","A"]
[null,null,null,null,null,null,null,null,"D","B","D","B"]
[null,null,null,null,null,null,null,null,"D","B","D","C"]
[null,null,null,null,null,null,null,null,"D","B","D","D"]
[null,null,null,null,null,null,null,null,"D","B","D","E"]
[null,null,null,null,null,null,null,null,"D","B","D","F"]
[null,null,null,null,null,null,null,null,"D","B","E","A"]
[null,null,null,null,null,null,null,null,"D","B","E","B"]
[null,null,null,null,null,null,null,null,"D","B","E","C"]
[null,null,null,null,null,null,null,null,"D","B","E","D"]
[null,null,null,null,null,null,null,null,"D","B","E","E"]
[null,null,null,null,null,null,null,null,"D","B","E","F"]
[null,null,null,null,null,null,null,null,"D","B","F","A"]
[null,null,null,null,null,null,null,null,"D","B","F","B"]
[null,null,null,null,null,null,null,null,"D","B","F","C"]
[null,null,null,null,null,null,null,null,"D","B","F","D"]
[null,null,null,null,null,null,null,null,"D","B","F","E"]
[null,null,null,null,null,null,null,null,"D","B","F","F"]
[null,null,null,null,null,null,null,null,"D","C","A","A"]
[null,null,null,null,null,null,null,null,"D","C","A","B"]
[null,null,null,null,null,null,null,null,"D","C","A","C"]
[null,null,null,null,null,null,null,null,"D","C","A","D"]
[null,null,null,null,null,null,null,null,"D","C","A","E"]
[null,null,null,null,null,null,null,null,"D","C","A","F"]
[null,null,null,null,null,null,null,null,"D","C","B","A"]
[null,null,null,null,null,null,null,null,"D","C","B","B"]
[null,null,null,null,null,null,null,null,"D","C","B","C"]
[null,null,null,null,null,null,null,null,"D","C","B","D"]
[null,null,null,null,null,null,null,null,"D","C","B","E"]
[null,null,null,null,null,null,null,null,"D","C","B","F"]
[null,null,null,null,null,null,null,null,"D","C","C","A"]
[null,null,null,null,null,null,null,null,"D","C","C","B"]
[null,null,null,null,null,null,null,null,"D","C","C","C"]
[null,null,null,null,null,null,null,null,"D","C","C","D"]
[null,null,null,null,null,null,null,null,"D","C","C","E"]
[null,null,null,null,null,null,null,null,"D","C","C","F"]
[null,null,null,null,null,null,null,null,"D","C","D","A"]
[null,null,null,null,null,null,null,null,"D","C","D","B"]
[null,null,null,null,null,null,null,null,"D","C","D","C"]
[null,null,null,null,null,null,null,null,"D","C","D","D"]
[null,null,null,null,null,null,null,null,"D","C","D","E"]
[null,null,null,null,null,null,null,null,"D","C","D","F"]
[null,null,null,null,null,null,null,null,"D","C","E","A"]
[null,null,null,null,null,null,null,null,"D","C","E","B"]
[null,null,null,null,null,null,null,null,"D","C","E","C"]
[null,null,null,null,null,null,null,null,"D","C","E","D"]
[null,null,null,null,null,null,null,null,"D","C","E","E"]
[null,null,null,null,null,null,null,null,"D","C","E","F"]
[null,null,null,null,null,null,null,null,"D","C","F","A"]
[null,null,null,null,null,null,null,null,"D","C","F","B"]
[null,null,null,null,null,null,null,null,"D","C","F","C"]
[null,null,null,null,null,null,null,null,"D","C","F","D"]
[null,null,null,null,null,null,null,null,"D","C","F","E"]
[null,null,null,null,null,null,null,null,"D","C","F","F"]
[null,null,null,null,null,null,null,null,"D","D","A","A"]
[null,null,null,null,null,null,null,null,"D","D","A","B"]
[null,null,null,null,null,null,null,null,"D","D","A","C"]
[null,null,null,null,null,null,null,null,"D","D","A","D"]
[null,null,null,null,null,null,null,null,"D","D","A","E"]
[null,null,null,null,null,null,null,null,"D","D","A","F"]
[null,null,null,null,null,null,null,null,"D","D","B","A"]
[null,null,null,null,null,null,null,null,"D","D","B","B"]
[null,null,null,null,null,null,null,null,"D","D","B","C"]
[null,null,null,null,null,null,null,null,"D","D","B","D"]
[null,null,null,null,null,null,null,null,"D","D","B","E"]
[null,null,null,null,null,null,null,null,"D","D","B","F"]
[null,null,null,null,null,null,null,null,"D","D","C","A"]
[null,null,null,null,null,null,null,null,"D","D","C","B"]
[null,null,null,null,null,null,null,null,"D","D","C","C"]
[null,null,null,null,null,null,null,null,"D","D","C","D"]
[null,null,null,null,null,null,null,null,"D","D","C","E"]
[null,null,null,null,null,null,null,null,"D","D","C","F"]
[null,null,null,null,null,null,null,null,"D","D","D","A"]
[null,null,null,null,null,null,null,null,"D","D","D","B"]
[null,null,null,null,null,null,null,null,"D","D","D","C"]
[null,null,null,null,null,null,null,null,"D","D","D","D"]
[null,null,null,null,null,null,null,null,"D","D","D","E"]
[null,null,null,null,null,null,null,null,"D","D","D","F"]
[null,null,null,null,null,null,null,null,"D","D","E","A"]
[null,null,null,null,null,null,null,null,"D","D","E","B"]
[null,null,null,null,null,null,null,null,"D","D","E","C"]
[null,null,null,null,null,null,null,null,"D","D","E","D"]
[null,null,null,null,null,null,null,null,"D","D","E","E"]
[null,null,null,null,null,null,null,null,"D","D","E","F"]
[null,null,null,null,null,null,null,null,"D","D","F","A"]
[null,null,null,null,null,null,null,null,"D","D","F","B"]
[null,null,null,null,null,null,null,null,"D","D","F","C"]
[null,null,null,null,null,null,null,null,"D","D","F","D"]
[null,null,null,null,null,null,null,null,"D","D","F","E"]
[null,null,null,null,null,null,null,null,"D","D","F","F"]
[null,null,null,null,null,null,null,null,"D","E","A","A"]
[null,null,null,null,null,null,null,null,"D","E","A","B"]
[null,null,null,null,null,null,null,null,"D","E","A","C"]
[null,null,null,null,null,null,null,null,"D","E","A","D"]
[null,null,null,null,null,null,null,null,"D","E","A","E"]
[null,null,null,null,null,null,null,null,"D","E","A","F"]
[null,null,null,null,null,null,null,null,"D","E","B","A"]
[null,null,null,null,null,null,null,null,"D","E","B","B"]
[null,null,null,null,null,null,null,null,"D","E","B","C"]
[null,null,null,null,null,null,null,null,"D","E","B","D"]
[null,null,null,null,null,null,null,null,"D","E","B","E"]
[null,null,null,null,null,null,null,null,"D","E","B","F"]
[null,null,null,null,null,null,null,null,"D","E","C","A"]
[null,null,null,null,null,null,null,null,"D","E","C","B"]
[null,null,null,null,null,null,null,null,"D","E","C","C"]
[null,null,null,null,null,null,null,null,"D","E","C","D"]
[null,null,null,null,null,null,null,null,"D","E","C","E"]
[null,null,null,null,null,null,null,null,"D","E","C","F"]
[null,null,null,null,null,null,null,null,"D","E","D","A"]
[null,null,null,null,null,null,null,null,"D","E","D","B"]
[null,null,null,null,null,null,null,null,"D","E","D","C"]
[null,null,null,null,null,null,null,null,"D","E","D","D"]
[null,null,null,null,null,null,null,null,"D","E","D","E"]
[null,null,null,null,null,null,null,null,"D","E","D","F"]
[null,null,null,null,null,null,null,null,"D","E","E","A"]
[null,null,null,null,null,null,null,null,"D","E","E","B"]
[null,null,null,null,null,null,null,null,"D","E","E","C"]
[null,null,null,null,null,null,null,null,"D","E","E","D"]
[null,null,null,null,null,null,null,null,"D","E","E","E"]
[null,null,null,null,null,null,null,null,"D","E","E","F"]
[null,null,null,null,null,null,null,null,"D","E","F","A"]
[null,null,null,null,null,null,null,null,"D","E","F","B"]
[null,null,null,null,null,null,null,null,"D","E","F","C"]
[null,null,null,null,null,null,null,null,"D","E","F","D"]
[null,null,null,null,null,null,null,null,"D","E","F","E"]
[null,null,null,null,null,null,null,null,"D","E","F","F"]
[null,null,null,null,null,null,null,null,"D","F","A","A"]
[null,null,null,null,null,null,null,null,"D","F","A","B"]
[null,null,null,null,null,null,null,null,"D","F","A","C"]
[null,null,null,null,null,null,null,null,"D","F","A","D"]
[null,null,null,null,null,null,null,null,"D","F","A","E"]
[null,null,null,null,null,null,null,null,"D","F","A","F"]
[null,null,null,null,null,null,null,null,"D","F","B","A"]
[null,null,null,null,null,null,null,null,"D","F","B","B"]
[null,null,null,null,null,null,null,null,"D","F","B","C"]
[null,null,null,null,null,null,null,null,"D","F","B","D"]
[null,null,null,null,null,null,null,null,"D","F","B","E"]
[null,null,null,null,null,null,null,null,"D","F","B","F"]
[null,null,null,null,null,null,null,null,"D","F","C","A"]
[null,null,null,null,null,null,null,null,"D","F","C","B"]
[null,null,null,null,null,null,null,null,"D","F","C","C"]
[null,null,null,null,null,null,null,null,"D","F","C","D"]
[null,null,null,null,null,null,null,null,"D","F","C","E"]
[null,null,null,null,null,null,null,null,"D","F","C","F"]
[null,null,null,null,null,null,null,null,"D","F","D","A"]
[null,null,null,null,null,null,null,null,"D","F","D","B"]
[null,null,null,null,null,null,null,null,"D","F","D","C"]
[null,null,null,null,null,null,null,null,"D","F","D","D"]
[null,null,null,null,null,null,null,null,"D","F","D","E"]
[null,null,null,null,null,null,null,null,"D","F","D","F"]
[null,null,null,null,null,null,null,null,"D","F","E","A"]
[null,null,null,null,null,null,null,null,"D","F","E","B"]
[null,null,null,null,null,null,null,null,"D","F","E","C"]
[null,null,null,null,null,null,null,null,"D","F","E","D"]
[null,null,null,null,null,null,null,null,"D","F","E","E"]
[null,null,null,null,null,null,null,null,"D","F","E","F"]
[null,null,null,null,null,null,null,null,"D","F","F","A"]
[null,null,null,null,null,null,null,null,"D","F","F","B"]
[null,null,null,null,null,null,null,null,"D","F","F","C"]
[null,null,null,null,null,null,null,null,"D","F","F","D"]
[null,null,null,null,null,null,null,null,"D","F","F","E"]
[null,null,null,null,null,null,null,null,"D","F","F","F"]
[null,null,null,null,null,null,null,null,"E","A","A","A"]
[null,null,null,null,null,null,null,null,"E","A","A","B"]
[null,null,null,null,null,null,null,null,"E","A","A","C"]
[null,null,null,null,null,null,null,null,"E","A","A","D"]
[null,null,null,null,null,null,null,null,"E","A","A","E"]
[null,null,null,null,null,null,null,null,"E","A","A","F"]
[null,null,null,null,null,null,null,null,"E","A","B","A"]
[null,null,null,null,null,null,null,null,"E","A","B","B"]
[null,null,null,null,null,null,null,null,"E","A","B","C"]
[null,null,null,null,null,null,null,null,"E","A","B","D"]
[null,null,null,null,null,null,null,null,"E","A","B","E"]
[null,null,null,null,null,null,null,null,"E","A","B","F"]
[null,null,null,null,null,null,null,null,"E","A","C","A"]
[null,null,null,null,null,null,null,null,"E","A","C","B"]
[null,null,null,null,null,null,null,null,"E","A","C","C"]
[null,null,null,null,null,null,null,null,"E","A","C","D"]
[null,null,null,null,null,null,null,null,"E","A","C","E"]
[null,null,null,null,null,null,null,null,"E","A","C","F"]
[null,null,null,null,null,null,null,null,"E","A","D","A"]
[null,null,null,null,null,null,null,null,"E","A","D","B"]
[null,null,null,null,null,null,null,null,"E","A","D","C"]
[null,null,null,null,null,null,null,null,"E","A","D","D"]
[null,null,null,null,null,null,null,null,"E","A","D","E"]
[null,null,null,null,null,null,null,null,"E","A","D","F"]
[null,null,null,null,null,null,null,null,"E","A","E","A"]
[null,null,null,null,null,null,null,null,"E","A","E","B"]
[null,null,null,null,null,null,null,null,"E","A","E","C"]
[null,null,null,null,null,null,null,null,"E","A","E","D"]
[null,null,null,null,null,null,null,null,"E","A","E","E"]
[null,null,null,null,null,null,null,null,"E","A","E","F"]
[null,null,null,null,null,null,null,null,"E","A","F","A"]
[null,null,null,null,null,null,null,null,"E","A","F","B"]
[null,null,null,null,null,null,null,null,"E","A","F","C"]
[null,null,null,null,null,null,null,null,"E","A","F","D"]
[null,null,null,null,null,null,null,null,"E","A","F","E"]
[null,null,null,null,null,null,null,null,"E","A","F","F"]
[null,null,null,null,null,null,null,null,"E","B","A","A"]
[null,null,null,null,null,null,null,null,"E","B","A","B"]
[null,null,null,null,null,null,null,null,"E","B","A","C"]
[null,null,null,null,null,null,null,null,"E","B","A","D"]
[null,null,null,null,null,null,null,null,"E","B","A","E"]
[null,null,null,null,null,null,null,null,"E","B","A","F"]
[null,null,null,null,null,null,null,null,"E","B","B","A"]
[null,null,null,null,null,null,null,null,"E","B","B","B"]
[null,null,null,null,null,null,null,null,"E","B","B","C"]
[null,null,null,null,null,null,null,null,"E","B","B","D"]
[null,null,null,null,null,null,null,null,"E","B","B","E"]
[null,null,null,null,null,null,null,null,"E","B","B","F"]
[null,null,null,null,null,null,null,null,"E","B","C","A"]
[null,null,null,null,null,null,null,null,"E","B","C","B"]
[null,null,null,null,null,null,null,null,"E","B","C","C"]
[null,null,null,null,null,null,null,null,"E","B","C","D"]
[null,null,null,null,null,null,null,null,"E","B","C","E"]
[null,null,null,null,null,null,null,null,"E","B","C","F"]
[null,null,null,null,null,null,null,null,"E","B","D","A"]
[null,null,null,null,null,null,null,null,"E","B","D","B"]
[null,null,null,null,null,null,null,null,"E","B","D","C"]
[null,null,null,null,null,null,null,null,"E","B","D","D"]
[null,null,null,null,null,null,null,null,"E","B","D","E"]
[null,null,null,null,null,null,null,null,"E","B","D","F"]
[null,null,null,null,null,null,null,null,"E","B","E","A"]
[null,null,null,null,null,null,null,null,"E","B","E","B"]
[null,null,null,null,null,null,null,null,"E","B","E","C"]
[null,null,null,null,null,null,null,null,"E","B","E","D"]
[null,null,null,null,null,null,null,null,"E","B","E","E"]
[null,null,null,null,null,null,null,null,"E","B","E","F"]
[null,null,null,null,null,null,null,null,"E","B","F","A"]
[null,null,null,null,null,null,null,null,"E","B","F","B"]
[null,null,null,null,null,null,null,null,"E","B","F","C"]
[null,null,null,null,null,null,null,null,"E","B","F","D"]
[null,null,null,null,null,null,null,null,"E","B","F","E"]
[null,null,null,null,null,null,null,null,"E","B","F","F"]
[null,null,null,null,null,null,null,null,"E","C","A","A"]
[null,null,null,null,null,null,null,null,"E","C","A","B"]
[null,null,null,null,null,null,null,null,"E","C","A","C"]
[null,null,null,null,null,null,null,null,"E","C","A","D"]
[null,null,null,null,null,null,null,null,"E","C","A","E"]
[null,null,null,null,null,null,null,null,"E","C","A","F"]
[null,null,null,null,null,null,null,null,"E","C","B","A"]
[null,null,null,null,null,null,null,null,"E","C","B","B"]
[null,null,null,null,null,null,null,null,"E","C","B","C"]
[null,null,null,null,null,null,null,null,"E","C","B","D"]
[null,null,null,null,null,null,null,null,"E","C","B","E"]
[null,null,null,null,null,null,null,null,"E","C","B","F"]
[null,null,null,null,null,null,null,null,"E","C","C","A"]
[null,null,null,null,null,null,null,null,"E","C","C","B"]
[null,null,null,null,null,null,null,null,"E","C","C","C"]
[null,null,null,null,null,null,null,null,"E","C","C","D"]
[null,null,null,null,null,null,null,null,"E","C","C","E"]
[null,null,null,null,null,null,null,null,"E","C","C","F"]
[null,null,null,null,null,null,null,null,"E","C","D","A"]
[null,null,null,null,null,null,null,null,"E","C","D","B"]
[null,null,null,null,null,null,null,null,"E","C","D","C"]
[null,null,null,null,null,null,null,null,"E","C","D","D"]
[null,null,null,null,null,null,null,null,"E","C","D","E"]
[null,null,null,null,null,null,null,null,"E","C","D","F"]
[null,null,null,null,null,null,null,null,"E","C","E","A"]
[null,null,null,null,null,null,null,null,"E","C","E","B"]
[null,null,null,null,null,null,null,null,"E","C","E","C"]
[null,null,null,null,null,null,null,null,"E","C","E","D"]
[null,null,null,null,null,null,null,null,"E","C","E","E"]
[null,null,null,null,null,null,null,null,"E","C","E","F"]
[null,null,null,null,null,null,null,null,"E","C","F","A"]
[null,null,null,null,null,null,null,null,"E","C","F","B"]
[null,null,null,null,null,null,null,null,"E","C","F","C"]
[null,null,null,null,null,null,null,null,"E","C","F","D"]
[null,null,null,null,null,null,null,null,"E","C","F","E"]
[null,null,null,null,null,null,null,null,"E","C","F","F"]
[null,null,null,null,null,null,null,null,"E","D","A","A"]
[null,null,null,null,null,null,null,null,"E","D","A","B"]
[null,null,null,null,null,null,null,null,"E","D","A","C"]
[null,null,null,null,null,null,null,null,"E","D","A","D"]
[null,null,null,null,null,null,null,null,"E","D","A","E"]
[null,null,null,null,null,null,null,null,"E","D","A","F"]
[null,null,null,null,null,null,null,null,"E","D","B","A"]
[null,null,null,null,null,null,null,null,"E","D","B","B"]
[null,null,null,null,null,null,null,null,"E","D","B","C"]
[null,null,null,null,null,null,null,null,"E","D","B","D"]
[null,null,null,null,null,null,null,null,"E","D","B","E"]
[null,null,null,null,null,null,null,null,"E","D","B","F"]
[null,null,null,null,null,null,null,null,"E","D","C","A"]
[null,null,null,null,null,null,null,null,"E","D","C","B"]
[null,null,null,null,null,null,null,null,"E","D","C","C"]
[null,null,null,null,null,null,null,null,"E","D","C","D"]
[null,null,null,null,null,null,null,null,"E","D","C","E"]
[null,null,null,null,null,null,null,null,"E","D","C","F"]
[null,null,null,null,null,null,null,null,"E","D","D","A"]
[null,null,null,null,null,null,null,null,"E","D","D","B"]
[null,null,null,null,null,null,null,null,"E","D","D","C"]
[null,null,null,null,null,null,null,null,"E","D","D","D"]
[null,null,null,null,null,null,null,null,"E","D","D","E"]
[null,null,null,null,null,null,null,null,"E","D","D","F"]
[null,null,null,null,null,null,null,null,"E","D","E","A"]
[null,null,null,null,null,null,null,null,"E","D","E","B"]
[null,null,null,null,null,null,null,null,"E","D","E","C"]
[null,null,null,null,null,null,null,null,"E","D","E","D"]
[null,null,null,null,null,null,null,null,"E","D","E","E"]
[null,null,null,null,null,null,null,null,"E","D","E","F"]
[null,null,null,null,null,null,null,null,"E","D","F","A"]
[null,null,null,null,null,null,null,null,"E","D","F","B"]
[null,null,null,null,null,null,null,null,"E","D","F","C"]
[null,null,null,null,null,null,null,null,"E","D","F","D"]
[null,null,null,null,null,null,null,null,"E","D","F","E"]
[null,null,null,null,null,null,null,null,"E","D","F","F"]
[null,null,null,null,null,null,null,null,"E","E","A","A"]
[null,null,null,null,null,null,null,null,"E","E","A","B"]
[null,null,null,null,null,null,null,null,"E","E","A","C"]
[null,null,null,null,null,null,null,null,"E","E","A","D"]
[null,null,null,null,null,null,null,null,"E","E","A","E"]
[null,null,null,null,null,null,null,null,"E","E","A","F"]
[null,null,null,null,null,null,null,null,"E","E","B","A"]
[null,null,null,null,null,null,null,null,"E","E","B","B"]
[null,null,null,null,null,null,null,null,"E","E","B","C"]
[null,null,null,null,null,null,null,null,"E","E","B","D"]
[null,null,null,null,null,null,null,null,"E","E","B","E"]
[null,null,null,null,null,null,null,null,"E","E","B","F"]
[null,null,null,null,null,null,null,null,"E","E","C","A"]
[null,null,null,null,null,null,null,null,"E","E","C","B"]
[null,null,null,null,null,null,null,null,"E","E","C","C"]
[null,null,null,null,null,null,null,null,"E","E","C","D"]
[null,null,null,null,null,null,null,null,"E","E","C","E"]
[null,null,null,null,null,null,null,null,"E","E","C","F"]
[null,null,null,null,null,null,null,null,"E","E","D","A"]
[null,null,null,null,null,null,null,null,"E","E","D","B"]
[null,null,null,null,null,null,null,null,"E","E","D","C"]
[null,null,null,null,null,null,null,null,"E","E","D","D"]
[null,null,null,null,null,null,null,null,"E","E","D","E"]
[null,null,null,null,null,null,null,null,"E","E","D","F"]
[null,null,null,null,null,null,null,null,"E","E","E","A"]
[null,null,null,null,null,null,null,null,"E","E","E","B"]
[null,null,null,null,null,null,null,null,"E","E","E","C"]
[null,null,null,null,null,null,null,null,"E","E","E","D"]
[null,null,null,null,null,null,null,null,"E","E","E","E"]
[null,null,null,null,null,null,null,null,"E","E","E","F"]
[null,null,null,null,null,null,null,null,"E","E","F","A"]
[null,null,null,null,null,null,null,null,"E","E","F","B"]
[null,null,null,null,null,null,null,null,"E","E","F","C"]
[null,null,null,null,null,null,null,null,"E","E","F","D"]
[null,null,null,null,null,null,null,null,"E","E","F","E"]
[null,null,null,null,null,null,null,null,"E","E","F","F"]
[null,null,null,null,null,null,null,null,"E","F","A","A"]
[null,null,null,null,null,null,null,null,"E","F","A","B"]
[null,null,null,null,null,null,null,null,"E","F","A","C"]
[null,null,null,null,null,null,null,null,"E","F","A","D"]
[null,null,null,null,null,null,null,null,"E","F","A","E"]
[null,null,null,null,null,null,null,null,"E","F","A","F"]
[null,null,null,null,null,null,null,null,"E","F","B","A"]
[null,null,null,null,null,null,null,null,"E","F","B","B"]
[null,null,null,null,null,null,null,null,"E","F","B","C"]
[null,null,null,null,null,null,null,null,"E","F","B","D"]
[null,null,null,null,null,null,null,null,"E","F","B","E"]
[null,null,null,null,null,null,null,null,"E","F","B","F"]
[null,null,null,null,null,null,null,null,"E","F","C","A"]
[null,null,null,null,null,null,null,null,"E","F","C","B"]
[null,null,null,null,null,null,null,null,"E","F","C","C"]
[null,null,null,null,null,null,null,null,"E","F","C","D"]
[null,null,null,null,null,null,null,null,"E","F","C","E"]
[null,null,null,null,null,null,null,null,"E","F","C","F"]
[null,null,null,null,null,null,null,null,"E","F","D","A"]
[null,null,null,null,null,null,null,null,"E","F","D","B"]
[null,null,null,null,null,null,null,null,"E","F","D","C"]
[null,null,null,null,null,null,null,null,"E","F","D","D"]
[null,null,null,null,null,null,null,null,"E","F","D","E"]
[null,null,null,null,null,null,null,null,"E","F","D","F"]
[null,null,null,null,null,null,null,null,"E","F","E","A"]
[null,null,null,null,null,null,null,null,"E","F","E","B"]
[null,null,null,null,null,null,null,null,"E","F","E","C"]
[null,null,null,null,null,null,null,null,"E","F","E","D"]
[null,null,null,null,null,null,null,null,"E","F","E","E"]
[null,null,null,null,null,null,null,null,"E","F","E","F"]
[null,null,null,null,null,null,null,null,"E","F","F","A"]
[null,null,null,null,null,null,null,null,"E","F","F","B"]
[null,null,null,null,null,null,null,null,"E","F","F","C"]
[null,null,null,null,null,null,null,null,"E","F","F","D"]
[null,null,null,null,null,null,null,null,"E","F","F","E"]
[null,null,null,null,null,null,null,null,"E","F","F","F"]
[null,null,null,null,null,null,null,null,"F","A","A","A"]
[null,null,null,null,null,null,null,null,"F","A","A","B"]
[null,null,null,null,null,null,null,null,"F","A","A","C"]
[null,null,null,null,null,null,null,null,"F","A","A","D"]
[null,null,null,null,null,null,null,null,"F","A","A","E"]
[null,null,null,null,null,null,null,null,"F","A","A","F"]
[null,null,null,null,null,null,null,null,"F","A","B","A"]
[null,null,null,null,null,null,null,null,"F","A","B","B"]
[null,null,null,null,null,null,null,null,"F","A","B","C"]
[null,null,null,null,null,null,null,null,"F","A","B","D"]
[null,null,null,null,null,null,null,null,"F","A","B","E"]
[null,null,null,null,null,null,null,null,"F","A","B","F"]
[null,null,null,null,null,null,null,null,"F","A","C","A"]
[null,null,null,null,null,null,null,null,"F","A","C","B"]
[null,null,null,null,null,null,null,null,"F","A","C","C"]
[null,null,null,null,null,null,null,null,"F","A","C","D"]
[null,null,null,null,null,null,null,null,"F","A","C","E"]
[null,null,null,null,null,null,null,null,"F","A","C","F"]
[null,null,null,null,null,null,null,null,"F","A","D","A"]
[null,null,null,null,null,null,null,null,"F","A","D","B"]
[null,null,null,null,null,null,null,null,"F","A","D","C"]
[null,null,null,null,null,null,null,null,"F","A","D","D"]
[null,null,null,null,null,null,null,null,"F","A","D","E"]
[null,null,null,null,null,null,null,null,"F","A","D","F"]
[null,null,null,null,null,null,null,null,"F","A","E","A"]
[null,null,null,null,null,null,null,null,"F","A","E","B"]
[null,null,null,null,null,null,null,null,"F","A","E","C"]
[null,null,null,null,null,null,null,null,"F","A","E","D"]
[null,null,null,null,null,null,null,null,"F","A","E","E"]
[null,null,null,null,null,null,null,null,"F","A","E","F"]
[null,null,null,null,null,null,null,null,"F","A","F","A"]
[null,null,null,null,null,null,null,null,"F","A","F","B"]
[null,null,null,null,null,null,null,null,"F","A","F","C"]
[null,null,null,null,null,null,null,null,"F","A","F","D"]
[null,null,null,null,null,null,null,null,"F","A","F","E"]
[null,null,null,null,null,null,null,null,"F","A","F","F"]
[null,null,null,null,null,null,null,null,"F","B","A","A"]
[null,null,null,null,null,null,null,null,"F","B","A","B"]
[null,null,null,null,null,null,null,null,"F","B","A","C"]
[null,null,null,null,null,null,null,null,"F","B","A","D"]
[null,null,null,null,null,null,null,null,"F","B","A","E"]
[null,null,null,null,null,null,null,null,"F","B","A","F"]
[null,null,null,null,null,null,null,null,"F","B","B","A"]
[null,null,null,null,null,null,null,null,"F","B","B","B"]
[null,null,null,null,null,null,null,null,"F","B","B","C"]
[null,null,null,null,null,null,null,null,"F","B","B","D"]
[null,null,null,null,null,null,null,null,"F","B","B","E"]
[null,null,null,null,null,null,null,null,"F","B","B","F"]
[null,null,null,null,null,null,null,null,"F","B","C","A"]
[null,null,null,null,null,null,null,null,"F","B","C","B"]
[null,null,null,null,null,null,null,null,"F","B","C","C"]
[null,null,null,null,null,null,null,null,"F","B","C","D"]
[null,null,null,null,null,null,null,null,"F","B","C","E"]
[null,null,null,null,null,null,null,null,"F","B","C","F"]
[null,null,null,null,null,null,null,null,"F","B","D","A"]
[null,null,null,null,null,null,null,null,"F","B","D","B"]
[null,null,null,null,null,null,null,null,"F","B","D","C"]
[null,null,null,null,null,null,null,null,"F","B","D","D"]
[null,null,null,null,null,null,null,null,"F","B","D","E"]
[null,null,null,null,null,null,null,null,"F","B","D","F"]
[null,null,null,null,null,null,null,null,"F","B","E","A"]
[null,null,null,null,null,null,null,null,"F","B","E","B"]
[null,null,null,null,null,null,null,null,"F","B","E","C"]
[null,null,null,null,null,null,null,null,"F","B","E","D"]
[null,null,null,null,null,null,null,null,"F","B","E","E"]
[null,null,null,null,null,null,null,null,"F","B","E","F"]
[null,null,null,null,null,null,null,null,"F","B","F","A"]
[null,null,null,null,null,null,null,null,"F","B","F","B"]
[null,null,null,null,null,null,null,null,"F","B","F","C"]
[null,null,null,null,null,null,null,null,"F","B","F","D"]
[null,null,null,null,null,null,null,null,"F","B","F","E"]
[null,null,null,null,null,null,null,null,"F","B","F","F"]
[null,null,null,null,null,null,null,null,"F","C","A","A"]
[null,null,null,null,null,null,null,null,"F","C","A","B"]
[null,null,null,null,null,null,null,null,"F","C","A","C"]
[null,null,null,null,null,null,null,null,"F","C","A","D"]
[null,null,null,null,null,null,null,null,"F","C","A","E"]
[null,null,null,null,null,null,null,null,"F","C","A","F"]
[null,null,null,null,null,null,null,null,"F","C","B","A"]
[null,null,null,null,null,null,null,null,"F","C","B","B"]
[null,null,null,null,null,null,null,null,"F","C","B","C"]
[null,null,null,null,null,null,null,null,"F","C","B","D"]
[null,null,null,null,null,null,null,null,"F","C","B","E"]
[null,null,null,null,null,null,null,null,"F","C","B","F"]
[null,null,null,null,null,null,null,null,"F","C","C","A"]
[null,null,null,null,null,null,null,null,"F","C","C","B"]
[null,null,null,null,null,null,null,null,"F","C","C","C"]
[null,null,null,null,null,null,null,null,"F","C","C","D"]
[null,null,null,null,null,null,null,null,"F","C","C","E"]
[null,null,null,null,null,null,null,null,"F","C","C","F"]
[null,null,null,null,null,null,null,null,"F","C","D","A"]
[null,null,null,null,null,null,null,null,"F","C","D","B"]
[null,null,null,null,null,null,null,null,"F","C","D","C"]
[null,null,null,null,null,null,null,null,"F","C","D","D"]
[null,null,null,null,null,null,null,null,"F","C","D","E"]
[null,null,null,null,null,null,null,null,"F","C","D","F"]
[null,null,null,null,null,null,null,null,"F","C","E","A"]
[null,null,null,null,null,null,null,null,"F","C","E","B"]
[null,null,null,null,null,null,null,null,"F","C","E","C"]
[null,null,null,null,null,null,null,null,"F","C","E","D"]
[null,null,null,null,null,null,null,null,"F","C","E","E"]
[null,null,null,null,null,null,null,null,"F","C","E","F"]
[null,null,null,null,null,null,null,null,"F","C","F","A"]
[null,null,null,null,null,null,null,null,"F","C","F","B"]
[null,null,null,null,null,null,null,null,"F","C","F","C"]
[null,null,null,null,null,null,null,null,"F","C","F","D"]
[null,null,null,null,null,null,null,null,"F","C","F","E"]
[null,null,null,null,null,null,null,null,"F","C","F","F"]
[null,null,null,null,null,null,null,null,"F","D","A","A"]
[null,null,null,null,null,null,null,null,"F","D","A","B"]
[null,null,null,null,null,null,null,null,"F","D","A","C"]
[null,null,null,null,null,null,null,null,"F","D","A","D"]
[null,null,null,null,null,null,null,null,"F","D","A","E"]
[null,null,null,null,null,null,null,null,"F","D","A","F"]
[null,null,null,null,null,null,null,null,"F","D","B","A"]
[null,null,null,null,null,null,null,null,"F","D","B","B"]
[null,null,null,null,null,null,null,null,"F","D","B","C"]
[null,null,null,null,null,null,null,null,"F","D","B","D"]
[null,null,null,null,null,null,null,null,"F","D","B","E"]
[null,null,null,null,null,null,null,null,"F","D","B","F"]
[null,null,null,null,null,null,null,null,"F","D","C","A"]
[null,null,null,null,null,null,null,null,"F","D","C","B"]
[null,null,null,null,null,null,null,null,"F","D","C","C"]
[null,null,null,null,null,null,null,null,"F","D","C","D"]
[null,null,null,null,null,null,null,null,"F","D","C","E"]
[null,null,null,null,null,null,null,null,"F","D","C","F"]
[null,null,null,null,null,null,null,null,"F","D","D","A"]
[null,null,null,null,null,null,null,null,"F","D","D","B"]
[null,null,null,null,null,null,null,null,"F","D","D","C"]
[null,null,null,null,null,null,null,null,"F","D","D","D"]
[null,null,null,null,null,null,null,null,"F","D","D","E"]
[null,null,null,null,null,null,null,null,"F","D","D","F"]
[null,null,null,null,null,null,null,null,"F","D","E","A"]
[null,null,null,null,null,null,null,null,"F","D","E","B"]
[null,null,null,null,null,null,null,null,"F","D","E","C"]
[null,null,null,null,null,null,null,null,"F","D","E","D"]
[null,null,null,null,null,null,null,null,"F","D","E","E"]
[null,null,null,null,null,null,null,null,"F","D","E","F"]
[null,null,null,null,null,null,null,null,"F","D","F","A"]
[null,null,null,null,null,null,null,null,"F","D","F","B"]
[null,null,null,null,null,null,null,null,"F","D","F","C"]
[null,null,null,null,null,null,null,null,"F","D","F","D"]
[null,null,null,null,null,null,null,null,"F","D","F","E"]
[null,null,null,null,null,null,null,null,"F","D","F","F"]
[null,null,null,null,null,null,null,null,"F","E","A","A"]
[null,null,null,null,null,null,null,null,"F","E","A","B"]
[null,null,null,null,null,null,null,null,"F","E","A","C"]
[null,null,null,null,null,null,null,null,"F","E","A","D"]
[null,null,null,null,null,null,null,null,"F","E","A","E"]
[null,null,null,null,null,null,null,null,"F","E","A","F"]
[null,null,null,null,null,null,null,null,"F","E","B","A"]
[null,null,null,null,null,null,null,null,"F","E","B","B"]
[null,null,null,null,null,null,null,null,"F","E","B","C"]
[null,null,null,null,null,null,null,null,"F","E","B","D"]
[null,null,null,null,null,null,null,null,"F","E","B","E"]
[null,null,null,null,null,null,null,null,"F","E","B","F"]
[null,null,null,null,null,null,null,null,"F","E","C","A"]
[null,null,null,null,null,null,null,null,"F","E","C","B"]
[null,null,null,null,null,null,null,null,"F","E","C","C"]
[null,null,null,null,null,null,null,null,"F","E","C","D"]
[null,null,null,null,null,null,null,null,"F","E","C","E"]
[null,null,null,null,null,null,null,null,"F","E","C","F"]
[null,null,null,null,null,null,null,null,"F","E","D","A"]
[null,null,null,null,null,null,null,null,"F","E","D","B"]
[null,null,null,null,null,null,null,null,"F","E","D","C"]
[null,null,null,null,null,null,null,null,"F","E","D","D"]
[null,null,null,null,null,null,null,null,"F","E","D","E"]
[null,null,null,null,null,null,null,null,"F","E","D","F"]
[null,null,null,null,null,null,null,null,"F","E","E","A"]
[null,null,null,null,null,null,null,null,"F","E","E","B"]
[null,null,null,null,null,null,null,null,"F","E","E","C"]
[null,null,null,null,null,null,null,null,"F","E","E","D"]
[null,null,null,null,null,null,null,null,"F","E","E","E"]
[null,null,null,null,null,null,null,null,"F","E","E","F"]
[null,null,null,null,null,null,null,null,"F","E","F","A"]
[null,null,null,null,null,null,null,null,"F","E","F","B"]
[null,null,null,null,null,null,null,null,"F","E","F","C"]
[null,null,null,null,null,null,null,null,"F","E","F","D"]
[null,null,null,null,null,null,null,null,"F","E","F","E"]
[null,null,null,null,null,null,null,null,"F","E","F","F"]
[null,null,null,null,null,null,null,null,"F","F","A","A"]
[null,null,null,null,null,null,null,null,"F","F","A","B"]
[null,null,null,null,null,null,null,null,"F","F","A","C"]
[null,null,null,null,null,null,null,null,"F","F","A","D"]
[null,null,null,null,null,null,null,null,"F","F","A","E"]
[null,null,null,null,null,null,null,null,"F","F","A","F"]
[null,null,null,null,null,null,null,null,"F","F","B","A"]
[null,null,null,null,null,null,null,null,"F","F","B","B"]
[null,null,null,null,null,null,null,null,"F","F","B","C"]
[null,null,null,null,null,null,null,null,"F","F","B","D"]
[null,null,null,null,null,null,null,null,"F","F","B","E"]
[null,null,null,null,null,null,null,null,"F","F","B","F"]
[null,null,null,null,null,null,null,null,"F","F","C","A"]
[null,null,null,null,null,null,null,null,"F","F","C","B"]
[null,null,null,null,null,null,null,null,"F","F","C","C"]
[null,null,null,null,null,null,null,null,"F","F","C","D"]
[null,null,null,null,null,null,null,null,"F","F","C","E"]
[null,null,null,null,null,null,null,null,"F","F","C","F"]
[null,null,null,null,null,null,null,null,"F","F","D","A"]
[null,null,null,null,null,null,null,null,"F","F","D","B"]
[null,null,null,null,null,null,null,null,"F","F","D","C"]
[null,null,null,null,null,null,null,null,"F","F","D","D"]
[null,null,null,null,null,null,null,null,"F","F","D","E"]
[null,null,null,null,null,null,null,null,"F","F","D","F"]
[null,null,null,null,null,null,null,null,"F","F","E","A"]
[null,null,null,null,null,null,null,null,"F","F","E","B"]
[null,null,null,null,null,null,null,null,"F","F","E","C"]
[null,null,null,null,null,null,null,null,"F","F","E","D"]
[null,null,null,null,null,null,null,null,"F","F","E","E"]
[null,null,null,null,null,null,null,null,"F","F","E","F"]
[null,null,null,null,null,null,null,null,"F","F","F","A"]
[null,null,null,null,null,null,null,null,"F","F","F","B"]
[null,null,null,null,null,null,null,null,"F","F","F","C"]
[null,null,null,null,null,null,null,null,"F","F","F","D"]
[null,null,null,null,null,null,null,null,"F","F","F","E"]
[null,null,null,null,null,null,null,null,"F","F","F","F"]

{"sheet":"Tabelle2","index":1,"n_rows":6,"n_cols":7,"rows_kept":6,"cut":false,"hidden":false,"merged":[[1,3,1,4],[1,5,1,6],[2,3,2,4],[2,5,2,6]]}
["Formeln zur Bestimmung der Anzahl"]
[null,null,null,"Variationen",null,"Kombinationen"]
[null,null,null,"(d.h. mit Reihenfolge)",null,"(d.h. ohne Reihenfolge)"]
[null,"k","n","ohne Wiederholungen","mit Wiederholungen","ohne Wiederholungen","mit Wiederholungen"]
["k aus n:",4,6,{"$f":"PERMUT(C5,B5)","v":360},{"$f":"C5^B5","v":1296},{"$f":"COMBIN(C5,B5)","v":15},{"$f":"_xlfn.COMBINA(C5,B5)","v":126}]
[null,null,null,"=VARIATIONEN(C4;B4)","=C4^B4","=KOMBINATIONEN(C4;B4)","=KOMBINATIONEN2(C4;B4)"]

{"sheet":"Tabelle3","index":2,"n_rows":36,"n_cols":38,"rows_kept":36,"cut":false,"hidden":false,"merged":[[2,33,2,37],[2,18,2,20],[2,22,2,23],[2,25,2,27],[1,18,1,20]]}
[null,"Verwendung des Parameters 'Index'"]
[null,null,null,null,null,null,null,null,null,null,null,null,null,null,null,null,null,null,"Beispiel 4"]
[null,null,null,null,null,null,null,null,null,null,null,null,null,null,null,null,null,null,"Grundmengen:",null,null,null,"Buchsta-benfeld alleine",null,null,"Ziffernfeld alleine",null,null,null,"Index Buichstaben",null,"Index Ziffern",null,"Alle Kombinationen zweier Buchstaben (A oder B) und dreier Ziffern (1 oder 2)"]
[]
[null,"Grundmenge (n = 6):","A","B","C","D","E","F",null,null,null,null,null,null,null,null,null,null,"A",null,1,null,{"$f":"permcomb(S5:S6,2,,TRUE)","v":"A"},"A",null,{"$f":"permcomb(U5:U6,3,,TRUE)","v":1},1,1,null,{"$f":"QUOTIENT(ROW(1:32)-1,8)+1","v":1},null,{"$f":"MOD(ROW(1:32)-1,8)+1","v":1},null,{"$f":"permcomb(S5:S6,2,,TRUE,QUOTIENT(ROW(1:32)-1,8)+1)","v":"A"},"A",{"$f":"permcomb(U5:U6,3,,TRUE,MOD(ROW(1:32)-1,8)+1)","v":1},1,1]
[null,null,null,null,null,null,null,null,null,null,null,null,null,null,null,null,null,null,"B",null,2,null,"A","B",null,1,1,2,null,1,null,2,null,"A","A",1,1,2]
["Beispiel 1","Einzelner Index (Zelle C7):",360,null,null,null,null,null,null,null,null,null,null,null,null,null,null,null,null,null,null,null,"B","A",null,1,2,1,null,1,null,3,null,"A","A",1,2,1]
[null,null,{"$f":"permcomb(C5:H5,4,TRUE,FALSE,C7)","v":"F"},"E","D","C",null,"=permcomb(B4:G4;4;WAHR;FALSCH;B6)",null,null,null,null,null,null,null,null,null,null,null,null,null,null,"B","B",null,1,2,2,null,1,null,4,null,"A","A",1,2,2]
[null,null,null,null,null,null,null,null,null,null,null,null,null,null,null,null,null,null,null,null,null,null,null,null,null,2,1,1,null,1,null,5,null,"A","A",2,1,1]
["Beispiel 2","Mehrere Indizes: {1;3;5;360}",{"$f":"permcomb(C5:H5,4,TRUE,FALSE,{1;3;5;360})","v":"A"},"B","C","D",null,"=permcomb(B4:G4;4;WAHR;FALSCH;{1;3;5;360})",null,null,null,null,null,null,null,null,null,null,null,null,null,null,null,null,null,2,1,2,null,1,null,6,null,"A","A",2,1,2]
[null,null,"A","B","C","F",null,null,null,null,null,null,null,null,null,null,null,null,null,null,null,null,null,null,null,2,2,1,null,1,null,7,null,"A","A",2,2,1]
[null,null,"A","B","D","E",null,null,null,null,null,null,null,null,null,null,null,null,null,null,null,null,null,null,null,2,2,2,null,1,null,8,null,"A","A",2,2,2]
[null,null,"F","E","D","C",null,null,null,null,null,null,null,null,null,null,null,null,null,null,null,null,null,null,null,null,null,null,null,2,null,1,null,"A","B",1,1,1]
[null,null,null,null,null,null,null,null,null,null,null,null,null,null,null,null,null,null,null,null,null,null,null,null,null,null,null,null,null,2,null,2,null,"A","B",1,1,2]
["Beispiel 3","Mehrere Indizes (C15:G15):",2,10,359,3,17,null,null,null,null,null,null,null,null,null,null,null,null,null,null,null,null,null,null,null,null,null,null,2,null,3,null,"A","B",1,2,1]
[null,null,{"$f":"permcomb(C5:H5,4,TRUE,FALSE,C15:G15)","v":"A"},"B","C","E",null,"=permcomb(B4:G4;4;WAHR;FALSCH;B14:F14)",null,null,null,null,null,null,null,null,null,null,null,null,null,null,null,null,null,null,null,null,null,2,null,4,null,"A","B",1,2,2]
[null,null,"A","B","F","C",null,null,null,null,null,null,null,null,null,null,null,null,null,null,null,null,null,null,null,null,null,null,null,2,null,5,null,"A","B",2,1,1]
[null,null,"F","E","D","B",null,null,null,null,null,null,null,null,null,null,null,null,null,null,null,null,null,null,null,null,null,null,null,2,null,6,null,"A","B",2,1,2]
[null,null,"A","B","C","F",null,null,null,null,null,null,null,null,null,null,null,null,null,null,null,null,null,null,null,null,null,null,null,2,null,7,null,"A","B",2,2,1]
[null,null,"A","C","D","E",null,null,null,null,null,null,null,null,null,null,null,null,null,null,null,null,null,null,null,null,null,null,null,2,null,8,null,"A","B",2,2,2]
[null,null,null,null,null,null,null,null,null,null,null,null,null,null,null,null,null,null,null,null,null,null,null,null,null,null,null,null,null,3,null,1,null,"B","A",1,1,1]
[null,null,null,null,null,null,null,null,null,null,null,null,null,null,null,null,null,null,null,null,null,null,null,null,null,null,null,null,null,3,null,2,null,"B","A",1,1,2]
[null,null,null,null,null,null,null,null,null,null,null,null,null,null,null,null,null,null,null,null,null,null,null,null,null,null,null,null,null,3,null,3,null,"B","A",1,2,1]
[null,null,null,null,null,null,null,null,null,null,null,null,null,null,null,null,null,null,null,null,null,null,null,null,null,null,null,null,null,3,null,4,null,"B","A",1,2,2]
[null,null,null,null,null,null,null,null,null,null,null,null,null,null,null,null,null,null,null,null,null,null,null,null,null,null,null,null,null,3,null,5,null,"B","A",2,1,1]
[null,null,null,null,null,null,null,null,null,null,null,null,null,null,null,null,null,null,null,null,null,null,null,null,null,null,null,null,null,3,null,6,null,"B","A",2,1,2]
[null,null,null,null,null,null,null,null,null,null,null,null,null,null,null,null,null,null,null,null,null,null,null,null,null,null,null,null,null,3,null,7,null,"B","A",2,2,1]
[null,null,null,null,null,null,null,null,null,null,null,null,null,null,null,null,null,null,null,null,null,null,null,null,null,null,null,null,null,3,null,8,null,"B","A",2,2,2]
[null,null,null,null,null,null,null,null,null,null,null,null,null,null,null,null,null,null,null,null,null,null,null,null,null,null,null,null,null,4,null,1,null,"B","B",1,1,1]
[null,null,null,null,null,null,null,null,null,null,null,null,null,null,null,null,null,null,null,null,null,null,null,null,null,null,null,null,null,4,null,2,null,"B","B",1,1,2]
[null,null,null,null,null,null,null,null,null,null,null,null,null,null,null,null,null,null,null,null,null,null,null,null,null,null,null,null,null,4,null,3,null,"B","B",1,2,1]
[null,null,null,null,null,null,null,null,null,null,null,null,null,null,null,null,null,null,null,null,null,null,null,null,null,null,null,null,null,4,null,4,null,"B","B",1,2,2]
[null,null,null,null,null,null,null,null,null,null,null,null,null,null,null,null,null,null,null,null,null,null,null,null,null,null,null,null,null,4,null,5,null,"B","B",2,1,1]
[null,null,null,null,null,null,null,null,null,null,null,null,null,null,null,null,null,null,null,null,null,null,null,null,null,null,null,null,null,4,null,6,null,"B","B",2,1,2]
[null,null,null,null,null,null,null,null,null,null,null,null,null,null,null,null,null,null,null,null,null,null,null,null,null,null,null,null,null,4,null,7,null,"B","B",2,2,1]
[null,null,null,null,null,null,null,null,null,null,null,null,null,null,null,null,null,null,null,null,null,null,null,null,null,null,null,null,null,4,null,8,null,"B","B",2,2,2]